{"text_format":"3","workbook":"xlsx","n_sheets":4,"sheets":["PODSUMOWANIE BUDŻETU OPR","PODSUM. WYDATKÓW MIESIĘCZNYCH","WYSZCZEGÓLNIONE WYDATKI","CELE CHARYTATYWNE I SPONSORING"],"not_rendered":{"defined_names":15},"read":"whole","date_system":"1900"}

{"sheet":"PODSUMOWANIE BUDŻETU OPR","index":0,"n_rows":17,"n_cols":7,"rows_kept":17,"merged":[[1,1,1,4]]}
[null,"PODSUM. WYDATKÓW MIESIĘCZNYCH"]
[null,"RZECZYWISTE a BUDŻET OPR",{"$nulls":3},"rok",{"$f":"YEAR(TODAY())","v":2019}]
[]
[null,"Kod KG","Nazwa konta","Rzeczywiste","Budżet","Pozostałe zł","Pozostałe %"]
[null,1000,"Reklama",{"$f":"SUMIF(Podsumowanie_wydatków_miesięcznych[Kod KG],Tabela_Od_początku_roku[[#This Row],[Kod KG]],Podsumowanie_wydatków_miesięcznych[Suma])","v":{"v":0,"d":"0.00 zł"}},{"v":100000,"d":"100,000.00 zł"},{"$f":"IF(Tabela_Od_początku_roku[[#This Row],[Budżet]]=\"\",\"\",Tabela_Od_początku_roku[[#This Row],[Budżet]]-Tabela_Od_początku_roku[[#This Row],[Rzeczywiste]])","v":{"v":100000,"d":"100,000.00 zł"}},{"$f":"IFERROR(Tabela_Od_początku_roku[[#This Row],[Pozostałe zł]]/Tabela_Od_początku_roku[[#This Row],[Budżet]],\"\")","v":{"v":1,"d":"100.00%"}}]
[null,2000,"Wyposażenie biura",{"$f":"SUMIF(Podsumowanie_wydatków_miesięcznych[Kod KG],Tabela_Od_początku_roku[[#This Row],[Kod KG]],Podsumowanie_wydatków_miesięcznych[Suma])","v":{"v":0,"d":"0.00 zł"}},{"v":100000,"d":"100,000.00 zł"},{"$f":"IF(Tabela_Od_początku_roku[[#This Row],[Budżet]]=\"\",\"\",Tabela_Od_początku_roku[[#This Row],[Budżet]]-Tabela_Od_początku_roku[[#This Row],[Rzeczywiste]])","v":{"v":100000,"d":"100,000.00 zł"}},{"$f":"IFERROR(Tabela_Od_początku_roku[[#This Row],[Pozostałe zł]]/Tabela_Od_początku_roku[[#This Row],[Budżet]],\"\")","v":{"v":1,"d":"100.00%"}}]
[null,3000,"Drukarki",{"$f":"SUMIF(Podsumowanie_wydatków_miesięcznych[Kod KG],Tabela_Od_początku_roku[[#This Row],[Kod KG]],Podsumowanie_wydatków_miesięcznych[Suma])","v":{"v":0,"d":"0.00 zł"}},{"v":100000,"d":"100,000.00 zł"},{"$f":"IF(Tabela_Od_początku_roku[[#This Row],[Budżet]]=\"\",\"\",Tabela_Od_początku_roku[[#This Row],[Budżet]]-Tabela_Od_początku_roku[[#This Row],[Rzeczywiste]])","v":{"v":100000,"d":"100,000.00 zł"}},{"$f":"IFERROR(Tabela_Od_początku_roku[[#This Row],[Pozostałe zł]]/Tabela_Od_początku_roku[[#This Row],[Budżet]],\"\")","v":{"v":1,"d":"100.00%"}}]
[null,4000,"Koszty serwerów",{"$f":"SUMIF(Podsumowanie_wydatków_miesięcznych[Kod KG],Tabela_Od_początku_roku[[#This Row],[Kod KG]],Podsumowanie_wydatków_miesięcznych[Suma])","v":{"v":0,"d":"0.00 zł"}},{"v":100000,"d":"100,000.00 zł"},{"$f":"IF(Tabela_Od_początku_roku[[#This Row],[Budżet]]=\"\",\"\",Tabela_Od_początku_roku[[#This Row],[Budżet]]-Tabela_Od_początku_roku[[#This Row],[Rzeczywiste]])","v":{"v":100000,"d":"100,000.00 zł"}},{"$f":"IFERROR(Tabela_Od_początku_roku[[#This Row],[Pozostałe zł]]/Tabela_Od_początku_roku[[#This Row],[Budżet]],\"\")","v":{"v":1,"d":"100.00%"}}]
[null,5000,"Artykuły",{"$f":"SUMIF(Podsumowanie_wydatków_miesięcznych[Kod KG],Tabela_Od_początku_roku[[#This Row],[Kod KG]],Podsumowanie_wydatków_miesięcznych[Suma])","v":{"v":0,"d":"0.00 zł"}},{"v":50000,"d":"50,000.00 zł"},{"$f":"IF(Tabela_Od_początku_roku[[#This Row],[Budżet]]=\"\",\"\",Tabela_Od_początku_roku[[#This Row],[Budżet]]-Tabela_Od_początku_roku[[#This Row],[Rzeczywiste]])","v":{"v":50000,"d":"50,000.00 zł"}},{"$f":"IFERROR(Tabela_Od_początku_roku[[#This Row],[Pozostałe zł]]/Tabela_Od_początku_roku[[#This Row],[Budżet]],\"\")","v":{"v":1,"d":"100.00%"}}]
[null,6000,"Wydatki dot. klientów",{"$f":"SUMIF(Podsumowanie_wydatków_miesięcznych[Kod KG],Tabela_Od_początku_roku[[#This Row],[Kod KG]],Podsumowanie_wydatków_miesięcznych[Suma])","v":{"v":0,"d":"0.00 zł"}},{"v":25000,"d":"25,000.00 zł"},{"$f":"IF(Tabela_Od_początku_roku[[#This Row],[Budżet]]=\"\",\"\",Tabela_Od_początku_roku[[#This Row],[Budżet]]-Tabela_Od_początku_roku[[#This Row],[Rzeczywiste]])","v":{"v":25000,"d":"25,000.00 zł"}},{"$f":"IFERROR(Tabela_Od_początku_roku[[#This Row],[Pozostałe zł]]/Tabela_Od_początku_roku[[#This Row],[Budżet]],\"\")","v":{"v":1,"d":"100.00%"}}]
[null,7000,"Komputery",{"$f":"SUMIF(Podsumowanie_wydatków_miesięcznych[Kod KG],Tabela_Od_początku_roku[[#This Row],[Kod KG]],Podsumowanie_wydatków_miesięcznych[Suma])","v":{"v":0,"d":"0.00 zł"}},{"v":75000,"d":"75,000.00 zł"},{"$f":"IF(Tabela_Od_początku_roku[[#This Row],[Budżet]]=\"\",\"\",Tabela_Od_początku_roku[[#This Row],[Budżet]]-Tabela_Od_początku_roku[[#This Row],[Rzeczywiste]])","v":{"v":75000,"d":"75,000.00 zł"}},{"$f":"IFERROR(Tabela_Od_początku_roku[[#This Row],[Pozostałe zł]]/Tabela_Od_początku_roku[[#This Row],[Budżet]],\"\")","v":{"v":1,"d":"100.00%"}}]
[null,8000,"Program opieki medycznej",{"$f":"SUMIF(Podsumowanie_wydatków_miesięcznych[Kod KG],Tabela_Od_początku_roku[[#This Row],[Kod KG]],Podsumowanie_wydatków_miesięcznych[Suma])","v":{"v":0,"d":"0.00 zł"}},{"v":65000,"d":"65,000.00 zł"},{"$f":"IF(Tabela_Od_początku_roku[[#This Row],[Budżet]]=\"\",\"\",Tabela_Od_początku_roku[[#This Row],[Budżet]]-Tabela_Od_początku_roku[[#This Row],[Rzeczywiste]])","v":{"v":65000,"d":"65,000.00 zł"}},{"$f":"IFERROR(Tabela_Od_początku_roku[[#This Row],[Pozostałe zł]]/Tabela_Od_początku_roku[[#This Row],[Budżet]],\"\")","v":{"v":1,"d":"100.00%"}}]
[null,9000,"Koszty budynku",{"$f":"SUMIF(Podsumowanie_wydatków_miesięcznych[Kod KG],Tabela_Od_początku_roku[[#This Row],[Kod KG]],Podsumowanie_wydatków_miesięcznych[Suma])","v":{"v":0,"d":"0.00 zł"}},{"v":125000,"d":"125,000.00 zł"},{"$f":"IF(Tabela_Od_początku_roku[[#This Row],[Budżet]]=\"\",\"\",Tabela_Od_początku_roku[[#This Row],[Budżet]]-Tabela_Od_początku_roku[[#This Row],[Rzeczywiste]])","v":{"v":125000,"d":"125,000.00 zł"}},{"$f":"IFERROR(Tabela_Od_początku_roku[[#This Row],[Pozostałe zł]]/Tabela_Od_początku_roku[[#This Row],[Budżet]],\"\")","v":{"v":1,"d":"100.00%"}}]
[null,10000,"Marketing",{"$f":"SUMIF(Podsumowanie_wydatków_miesięcznych[Kod KG],Tabela_Od_początku_roku[[#This Row],[Kod KG]],Podsumowanie_wydatków_miesięcznych[Suma])","v":{"v":0,"d":"0.00 zł"}},{"v":100000,"d":"100,000.00 zł"},{"$f":"IF(Tabela_Od_początku_roku[[#This Row],[Budżet]]=\"\",\"\",Tabela_Od_początku_roku[[#This Row],[Budżet]]-Tabela_Od_początku_roku[[#This Row],[Rzeczywiste]])","v":{"v":100000,"d":"100,000.00 zł"}},{"$f":"IFERROR(Tabela_Od_początku_roku[[#This Row],[Pozostałe zł]]/Tabela_Od_początku_roku[[#This Row],[Budżet]],\"\")","v":{"v":1,"d":"100.00%"}}]
[null,11000,"Cele charytatywne",{"$f":"SUMIF(Podsumowanie_wydatków_miesięcznych[Kod KG],Tabela_Od_początku_roku[[#This Row],[Kod KG]],Podsumowanie_wydatków_miesięcznych[Suma])","v":{"v":0,"d":"0.00 zł"}},{"v":250000,"d":"250,000.00 zł"},{"$f":"IF(Tabela_Od_początku_roku[[#This Row],[Budżet]]=\"\",\"\",Tabela_Od_początku_roku[[#This Row],[Budżet]]-Tabela_Od_początku_roku[[#This Row],[Rzeczywiste]])","v":{"v":250000,"d":"250,000.00 zł"}},{"$f":"IFERROR(Tabela_Od_początku_roku[[#This Row],[Pozostałe zł]]/Tabela_Od_początku_roku[[#This Row],[Budżet]],\"\")","v":{"v":1,"d":"100.00%"}}]
[null,12000,"Sponsorowanie",{"$f":"SUMIF(Podsumowanie_wydatków_miesięcznych[Kod KG],Tabela_Od_początku_roku[[#This Row],[Kod KG]],Podsumowanie_wydatków_miesięcznych[Suma])","v":{"v":0,"d":"0.00 zł"}},{"v":50000,"d":"50,000.00 zł"},{"$f":"IF(Tabela_Od_początku_roku[[#This Row],[Budżet]]=\"\",\"\",Tabela_Od_początku_roku[[#This Row],[Budżet]]-Tabela_Od_początku_roku[[#This Row],[Rzeczywiste]])","v":{"v":50000,"d":"50,000.00 zł"}},{"$f":"IFERROR(Tabela_Od_początku_roku[[#This Row],[Pozostałe zł]]/Tabela_Od_początku_roku[[#This Row],[Budżet]],\"\")","v":{"v":1,"d":"100.00%"}}]
[null,"Suma",null,{"$f":"SUBTOTAL(109,Tabela_Od_początku_roku[Rzeczywiste])","v":{"v":0,"d":"0.00 zł"}},{"$f":"SUBTOTAL(109,Tabela_Od_początku_roku[Budżet])","v":{"v":1140000,"d":"1,140,000.00 zł"}},{"$f":"SUBTOTAL(109,Tabela_Od_początku_roku[Pozostałe zł])","v":{"v":1140000,"d":"1,140,000.00 zł"}},{"$f":"Tabela_Od_początku_roku[[#Totals],[Pozostałe zł]]/Tabela_Od_początku_roku[[#Totals],[Budżet]]","v":{"v":1,"d":"100.00%"}}]

{"sheet":"PODSUM. WYDATKÓW MIESIĘCZNYCH","index":1,"n_rows":18,"n_cols":17,"rows_kept":18,"merged":[[1,1,1,16]]}
[null,"PODSUMOWANIE BUDŻETU OPR","WYSZCZEGÓLNIONE WYDATKI"]
[null,"PODSUM. WYDATKÓW MIESIĘCZNYCH"]
[null,"W tej komórce znajduje się fragmentator do filtrowania danych według nazw kont.",null,{"$f":"DATEVALUE(\"1-STY\"&_ROK)","v":{"v":43466,"d":"4346600.00%"}},{"$f":"DATEVALUE(\"1-LUT\"&_ROK)","v":{"v":43497,"d":"4349700.00%"}},{"$f":"DATEVALUE(\"1-MAR\"&_xlfn.SINGLE(_ROK))","v":{"v":43525,"d":"4352500.00%"}},{"$f":"DATEVALUE(\"1-KWI\"&_ROK)","v":{"v":43556,"d":"4355600.00%"}},{"$f":"DATEVALUE(\"1-MAJ\"&_ROK)","v":{"v":43586,"d":"4358600.00%"}},{"$f":"DATEVALUE(\"1-CZE\"&_ROK)","v":{"v":43617,"d":"4361700.00%"}},{"$f":"DATEVALUE(\"1-LIP\"&_ROK)","v":{"v":43647,"d":"4364700.00%"}},{"$f":"DATEVALUE(\"1-SIE\"&_ROK)","v":{"v":43678,"d":"4367800.00%"}},{"$f":"DATEVALUE(\"1-WRZ\"&_ROK)","v":{"v":43709,"d":"4370900.00%"}},{"$f":"DATEVALUE(\"1-PAŹ\"&_ROK)","v":{"v":43739,"d":"4373900.00%"}},{"$f":"DATEVALUE(\"1-LIS\"&_ROK)","v":{"v":43770,"d":"4377000.00%"}},{"$f":"DATEVALUE(\"1-GRU\"&_ROK)","v":{"v":43800,"d":"4380000.00%"}}]
[{"$nulls":3},{"$f":"EOMONTH(D3,0)","v":{"v":43496,"d":"4349600.00%"}},{"$f":"EOMONTH(E3,0)","v":{"v":43524,"d":"4352400.00%"}},{"$f":"EOMONTH(F3,0)","v":{"v":43555,"d":"4355500.00%"}},{"$f":"EOMONTH(G3,0)","v":{"v":43585,"d":"4358500.00%"}},{"$f":"EOMONTH(H3,0)","v":{"v":43616,"d":"4361600.00%"}},{"$f":"EOMONTH(I3,0)","v":{"v":43646,"d":"4364600.00%"}},{"v":43677,"d":"4367700.00%"},{"v":43708,"d":"4370800.00%"},{"v":43738,"d":"4373800.00%"},{"v":43769,"d":"4376900.00%"},{"v":43799,"d":"4379900.00%"},{"v":43830,"d":"4383000.00%"}]
[null,"Kod KG","Nazwa konta","Styczeń","Luty","Marzec","Kwiecień","Maj","Czerwiec","Lipiec","Sierpień","Wrzesień","Październik","Listopad","Grudzień","Suma"," "]
[null,1000,"Reklama",{"$f":"SUMIFS(Wyszczególnione_wydatki[Kwota przelewu],Wyszczególnione_wydatki[Kod KG],Podsumowanie_wydatków_miesięcznych[[#This Row],[Kod KG]],Wyszczególnione_wydatki[Data faktury],\">=\"&D$3,Wyszczególnione_wydatki[Data faktury],\"<=\"&D$4)+SUMIFS(Inne[Kwota przelewu],Inne[Kod KG],Podsumowanie_wydatków_miesięcznych[[#This Row],[Kod KG]],Inne[Data zainicjowania zlecenia przelewu],\">=\"&DATEVALUE(\" 1. \"&Podsumowanie_wydatków_miesięcznych[[#Headers],[Styczeń]]&_xlfn.SINGLE(_ROK)),Inne[Data zainicjowania zlecenia przelewu],\"<=\"&D$4)","v":{"v":0,"d":"0.00 zł"}},{"$f":"SUMIFS(Wyszczególnione_wydatki[Kwota przelewu],Wyszczególnione_wydatki[Kod KG],Podsumowanie_wydatków_miesięcznych[[#This Row],[Kod KG]],Wyszczególnione_wydatki[Data faktury],\">=\"&E$3,Wyszczególnione_wydatki[Data faktury],\"<=\"&E$4)+SUMIFS(Inne[Kwota przelewu],Inne[Kod KG],Podsumowanie_wydatków_miesięcznych[[#This Row],[Kod KG]],Inne[Data zainicjowania zlecenia przelewu],\">=\"&DATEVALUE(\" 1. \"&Podsumowanie_wydatków_miesięcznych[[#Headers],[Luty]]&_xlfn.SINGLE(_ROK)),Inne[Data zainicjowania zlecenia przelewu],\"<=\"&E$4)","v":{"v":0,"d":"0.00 zł"}},{"$f":"SUMIFS(Wyszczególnione_wydatki[Kwota przelewu],Wyszczególnione_wydatki[Kod KG],Podsumowanie_wydatków_miesięcznych[[#This Row],[Kod KG]],Wyszczególnione_wydatki[Data faktury],\">=\"&F$3,Wyszczególnione_wydatki[Data faktury],\"<=\"&F$4)+SUMIFS(Inne[Kwota przelewu],Inne[Kod KG],Podsumowanie_wydatków_miesięcznych[[#This Row],[Kod KG]],Inne[Data zainicjowania zlecenia przelewu],\">=\"&DATEVALUE(\" 1. \"&Podsumowanie_wydatków_miesięcznych[[#Headers],[Marzec]]&_xlfn.SINGLE(_ROK)),Inne[Data zainicjowania zlecenia przelewu],\"<=\"&F$4)","v":{"v":0,"d":"0.00 zł"}},{"$f":"SUMIFS(Wyszczególnione_wydatki[Kwota przelewu],Wyszczególnione_wydatki[Kod KG],Podsumowanie_wydatków_miesięcznych[[#This Row],[Kod KG]],Wyszczególnione_wydatki[Data faktury],\">=\"&G$3,Wyszczególnione_wydatki[Data faktury],\"<=\"&G$4)+SUMIFS(Inne[Kwota przelewu],Inne[Kod KG],Podsumowanie_wydatków_miesięcznych[[#This Row],[Kod KG]],Inne[Data zainicjowania zlecenia przelewu],\">=\"&DATEVALUE(\" 1. \"&Podsumowanie_wydatków_miesięcznych[[#Headers],[Kwiecień]]&_xlfn.SINGLE(_ROK)),Inne[Data zainicjowania zlecenia przelewu],\"<=\"&G$4)","v":{"v":0,"d":"0.00 zł"}},{"$f":"SUMIFS(Wyszczególnione_wydatki[Kwota przelewu],Wyszczególnione_wydatki[Kod KG],Podsumowanie_wydatków_miesięcznych[[#This Row],[Kod KG]],Wyszczególnione_wydatki[Data faktury],\">=\"&H$3,Wyszczególnione_wydatki[Data faktury],\"<=\"&H$4)+SUMIFS(Inne[Kwota przelewu],Inne[Kod KG],Podsumowanie_wydatków_miesięcznych[[#This Row],[Kod KG]],Inne[Data zainicjowania zlecenia przelewu],\">=\"&DATEVALUE(\" 1. \"&Podsumowanie_wydatków_miesięcznych[[#Headers],[Maj]]&_xlfn.SINGLE(_ROK)),Inne[Data zainicjowania zlecenia przelewu],\"<=\"&H$4)","v":{"v":0,"d":"0.00 zł"}},{"$f":"SUMIFS(Wyszczególnione_wydatki[Kwota przelewu],Wyszczególnione_wydatki[Kod KG],Podsumowanie_wydatków_miesięcznych[[#This Row],[Kod KG]],Wyszczególnione_wydatki[Data faktury],\">=\"&I$3,Wyszczególnione_wydatki[Data faktury],\"<=\"&I$4)+SUMIFS(Inne[Kwota przelewu],Inne[Kod KG],Podsumowanie_wydatków_miesięcznych[[#This Row],[Kod KG]],Inne[Data zainicjowania zlecenia przelewu],\">=\"&DATEVALUE(\" 1. \"&Podsumowanie_wydatków_miesięcznych[[#Headers],[Czerwiec]]&_xlfn.SINGLE(_ROK)),Inne[Data zainicjowania zlecenia przelewu],\"<=\"&I$4)","v":{"v":0,"d":"0.00 zł"}},{"$f":"SUMIFS(Wyszczególnione_wydatki[Kwota przelewu],Wyszczególnione_wydatki[Kod KG],Podsumowanie_wydatków_miesięcznych[[#This Row],[Kod KG]],Wyszczególnione_wydatki[Data faktury],\">=\"&J$3,Wyszczególnione_wydatki[Data faktury],\"<=\"&J$4)+SUMIFS(Inne[Kwota przelewu],Inne[Kod KG],Podsumowanie_wydatków_miesięcznych[[#This Row],[Kod KG]],Inne[Data zainicjowania zlecenia przelewu],\">=\"&DATEVALUE(\" 1. \"&Podsumowanie_wydatków_miesięcznych[[#Headers],[Lipiec]]&_xlfn.SINGLE(_ROK)),Inne[Data zainicjowania zlecenia przelewu],\"<=\"&J$4)","v":{"v":0,"d":"0.00 zł"}},{"$f":"SUMIFS(Wyszczególnione_wydatki[Kwota przelewu],Wyszczególnione_wydatki[Kod KG],Podsumowanie_wydatków_miesięcznych[[#This Row],[Kod KG]],Wyszczególnione_wydatki[Data faktury],\">=\"&K$3,Wyszczególnione_wydatki[Data faktury],\"<=\"&K$4)+SUMIFS(Inne[Kwota przelewu],Inne[Kod KG],Podsumowanie_wydatków_miesięcznych[[#This Row],[Kod KG]],Inne[Data zainicjowania zlecenia przelewu],\">=\"&DATEVALUE(\" 1. \"&Podsumowanie_wydatków_miesięcznych[[#Headers],[Sierpień]]&_xlfn.SINGLE(_ROK)),Inne[Data zainicjowania zlecenia przelewu],\"<=\"&K$4)","v":{"v":0,"d":"0.00 zł"}},{"$f":"SUMIFS(Wyszczególnione_wydatki[Kwota przelewu],Wyszczególnione_wydatki[Kod KG],Podsumowanie_wydatków_miesięcznych[[#This Row],[Kod KG]],Wyszczególnione_wydatki[Data faktury],\">=\"&L$3,Wyszczególnione_wydatki[Data faktury],\"<=\"&L$4)+SUMIFS(Inne[Kwota przelewu],Inne[Kod KG],Podsumowanie_wydatków_miesięcznych[[#This Row],[Kod KG]],Inne[Data zainicjowania zlecenia przelewu],\">=\"&DATEVALUE(\" 1. \"&Podsumowanie_wydatków_miesięcznych[[#Headers],[Wrzesień]]&_xlfn.SINGLE(_ROK)),Inne[Data zainicjowania zlecenia przelewu],\"<=\"&L$4)","v":{"v":0,"d":"0.00 zł"}},{"$f":"SUMIFS(Wyszczególnione_wydatki[Kwota przelewu],Wyszczególnione_wydatki[Kod KG],Podsumowanie_wydatków_miesięcznych[[#This Row],[Kod KG]],Wyszczególnione_wydatki[Data faktury],\">=\"&M$3,Wyszczególnione_wydatki[Data faktury],\"<=\"&M$4)+SUMIFS(Inne[Kwota przelewu],Inne[Kod KG],Podsumowanie_wydatków_miesięcznych[[#This Row],[Kod KG]],Inne[Data zainicjowania zlecenia przelewu],\">=\"&DATEVALUE(Podsumowanie_wydatków_miesięcznych[[#Headers],[Październik]]&_xlfn.SINGLE(_ROK)),Inne[Data zainicjowania zlecenia przelewu],\"<=\"&M$4)","v":{"v":0,"d":"0.00 zł"}},{"$f":"SUMIFS(Wyszczególnione_wydatki[Kwota przelewu],Wyszczególnione_wydatki[Kod KG],Podsumowanie_wydatków_miesięcznych[[#This Row],[Kod KG]],Wyszczególnione_wydatki[Data faktury],\">=\"&N$3,Wyszczególnione_wydatki[Data faktury],\"<=\"&N$4)+SUMIFS(Inne[Kwota przelewu],Inne[Kod KG],Podsumowanie_wydatków_miesięcznych[[#This Row],[Kod KG]],Inne[Data zainicjowania zlecenia przelewu],\">=\"&DATEVALUE(\" 1. \"&Podsumowanie_wydatków_miesięcznych[[#Headers],[Listopad]]&_xlfn.SINGLE(_ROK)),Inne[Data zainicjowania zlecenia przelewu],\"<=\"&N$4)","v":{"v":0,"d":"0.00 zł"}},{"$f":"SUMIFS(Wyszczególnione_wydatki[Kwota przelewu],Wyszczególnione_wydatki[Kod KG],Podsumowanie_wydatków_miesięcznych[[#This Row],[Kod KG]],Wyszczególnione_wydatki[Data faktury],\">=\"&O$3,Wyszczególnione_wydatki[Data faktury],\"<=\"&O$4)+SUMIFS(Inne[Kwota przelewu],Inne[Kod KG],Podsumowanie_wydatków_miesięcznych[[#This Row],[Kod KG]],Inne[Data zainicjowania zlecenia przelewu],\">=\"&DATEVALUE(\" 1. \"&Podsumowanie_wydatków_miesięcznych[[#Headers],[Grudzień]]&_xlfn.SINGLE(_ROK)),Inne[Data zainicjowania zlecenia przelewu],\"<=\"&O$4)","v":{"v":0,"d":"0.00 zł"}},{"$f":"SUM(Podsumowanie_wydatków_miesięcznych[[#This Row],[Styczeń]:[Grudzień]])","v":{"v":0,"d":"0.00 zł"}}]
[null,2000,"Wyposażenie biura",{"$f":"SUMIFS(Wyszczególnione_wydatki[Kwota przelewu],Wyszczególnione_wydatki[Kod KG],Podsumowanie_wydatków_miesięcznych[[#This Row],[Kod KG]],Wyszczególnione_wydatki[Data faktury],\">=\"&D$3,Wyszczególnione_wydatki[Data faktury],\"<=\"&D$4)+SUMIFS(Inne[Kwota przelewu],Inne[Kod KG],Podsumowanie_wydatków_miesięcznych[[#This Row],[Kod KG]],Inne[Data zainicjowania zlecenia przelewu],\">=\"&DATEVALUE(\" 1. \"&Podsumowanie_wydatków_miesięcznych[[#Headers],[Styczeń]]&_xlfn.SINGLE(_ROK)),Inne[Data zainicjowania zlecenia przelewu],\"<=\"&D$4)","v":{"v":0,"d":"0.00 zł"}},{"$f":"SUMIFS(Wyszczególnione_wydatki[Kwota przelewu],Wyszczególnione_wydatki[Kod KG],Podsumowanie_wydatków_miesięcznych[[#This Row],[Kod KG]],Wyszczególnione_wydatki[Data faktury],\">=\"&E$3,Wyszczególnione_wydatki[Data faktury],\"<=\"&E$4)+SUMIFS(Inne[Kwota przelewu],Inne[Kod KG],Podsumowanie_wydatków_miesięcznych[[#This Row],[Kod KG]],Inne[Data zainicjowania zlecenia przelewu],\">=\"&DATEVALUE(\" 1. \"&Podsumowanie_wydatków_miesięcznych[[#Headers],[Luty]]&_xlfn.SINGLE(_ROK)),Inne[Data zainicjowania zlecenia przelewu],\"<=\"&E$4)","v":{"v":0,"d":"0.00 zł"}},{"$f":"SUMIFS(Wyszczególnione_wydatki[Kwota przelewu],Wyszczególnione_wydatki[Kod KG],Podsumowanie_wydatków_miesięcznych[[#This Row],[Kod KG]],Wyszczególnione_wydatki[Data faktury],\">=\"&F$3,Wyszczególnione_wydatki[Data faktury],\"<=\"&F$4)+SUMIFS(Inne[Kwota przelewu],Inne[Kod KG],Podsumowanie_wydatków_miesięcznych[[#This Row],[Kod KG]],Inne[Data zainicjowania zlecenia przelewu],\">=\"&DATEVALUE(\" 1. \"&Podsumowanie_wydatków_miesięcznych[[#Headers],[Marzec]]&_xlfn.SINGLE(_ROK)),Inne[Data zainicjowania zlecenia przelewu],\"<=\"&F$4)","v":{"v":0,"d":"0.00 zł"}},{"$f":"SUMIFS(Wyszczególnione_wydatki[Kwota przelewu],Wyszczególnione_wydatki[Kod KG],Podsumowanie_wydatków_miesięcznych[[#This Row],[Kod KG]],Wyszczególnione_wydatki[Data faktury],\">=\"&G$3,Wyszczególnione_wydatki[Data faktury],\"<=\"&G$4)+SUMIFS(Inne[Kwota przelewu],Inne[Kod KG],Podsumowanie_wydatków_miesięcznych[[#This Row],[Kod KG]],Inne[Data zainicjowania zlecenia przelewu],\">=\"&DATEVALUE(\" 1. \"&Podsumowanie_wydatków_miesięcznych[[#Headers],[Kwiecień]]&_xlfn.SINGLE(_ROK)),Inne[Data zainicjowania zlecenia przelewu],\"<=\"&G$4)","v":{"v":0,"d":"0.00 zł"}},{"$f":"SUMIFS(Wyszczególnione_wydatki[Kwota przelewu],Wyszczególnione_wydatki[Kod KG],Podsumowanie_wydatków_miesięcznych[[#This Row],[Kod KG]],Wyszczególnione_wydatki[Data faktury],\">=\"&H$3,Wyszczególnione_wydatki[Data faktury],\"<=\"&H$4)+SUMIFS(Inne[Kwota przelewu],Inne[Kod KG],Podsumowanie_wydatków_miesięcznych[[#This Row],[Kod KG]],Inne[Data zainicjowania zlecenia przelewu],\">=\"&DATEVALUE(\" 1. \"&Podsumowanie_wydatków_miesięcznych[[#Headers],[Maj]]&_xlfn.SINGLE(_ROK)),Inne[Data zainicjowania zlecenia przelewu],\"<=\"&H$4)","v":{"v":0,"d":"0.00 zł"}},{"$f":"SUMIFS(Wyszczególnione_wydatki[Kwota przelewu],Wyszczególnione_wydatki[Kod KG],Podsumowanie_wydatków_miesięcznych[[#This Row],[Kod KG]],Wyszczególnione_wydatki[Data faktury],\">=\"&I$3,Wyszczególnione_wydatki[Data faktury],\"<=\"&I$4)+SUMIFS(Inne[Kwota przelewu],Inne[Kod KG],Podsumowanie_wydatków_miesięcznych[[#This Row],[Kod KG]],Inne[Data zainicjowania zlecenia przelewu],\">=\"&DATEVALUE(\" 1. \"&Podsumowanie_wydatków_miesięcznych[[#Headers],[Czerwiec]]&_xlfn.SINGLE(_ROK)),Inne[Data zainicjowania zlecenia przelewu],\"<=\"&I$4)","v":{"v":0,"d":"0.00 zł"}},{"$f":"SUMIFS(Wyszczególnione_wydatki[Kwota przelewu],Wyszczególnione_wydatki[Kod KG],Podsumowanie_wydatków_miesięcznych[[#This Row],[Kod KG]],Wyszczególnione_wydatki[Data faktury],\">=\"&J$3,Wyszczególnione_wydatki[Data faktury],\"<=\"&J$4)+SUMIFS(Inne[Kwota przelewu],Inne[Kod KG],Podsumowanie_wydatków_miesięcznych[[#This Row],[Kod KG]],Inne[Data zainicjowania zlecenia przelewu],\">=\"&DATEVALUE(\" 1. \"&Podsumowanie_wydatków_miesięcznych[[#Headers],[Lipiec]]&_xlfn.SINGLE(_ROK)),Inne[Data zainicjowania zlecenia przelewu],\"<=\"&J$4)","v":{"v":0,"d":"0.00 zł"}},{"$f":"SUMIFS(Wyszczególnione_wydatki[Kwota przelewu],Wyszczególnione_wydatki[Kod KG],Podsumowanie_wydatków_miesięcznych[[#This Row],[Kod KG]],Wyszczególnione_wydatki[Data faktury],\">=\"&K$3,Wyszczególnione_wydatki[Data faktury],\"<=\"&K$4)+SUMIFS(Inne[Kwota przelewu],Inne[Kod KG],Podsumowanie_wydatków_miesięcznych[[#This Row],[Kod KG]],Inne[Data zainicjowania zlecenia przelewu],\">=\"&DATEVALUE(\" 1. \"&Podsumowanie_wydatków_miesięcznych[[#Headers],[Sierpień]]&_xlfn.SINGLE(_ROK)),Inne[Data zainicjowania zlecenia przelewu],\"<=\"&K$4)","v":{"v":0,"d":"0.00 zł"}},{"$f":"SUMIFS(Wyszczególnione_wydatki[Kwota przelewu],Wyszczególnione_wydatki[Kod KG],Podsumowanie_wydatków_miesięcznych[[#This Row],[Kod KG]],Wyszczególnione_wydatki[Data faktury],\">=\"&L$3,Wyszczególnione_wydatki[Data faktury],\"<=\"&L$4)+SUMIFS(Inne[Kwota przelewu],Inne[Kod KG],Podsumowanie_wydatków_miesięcznych[[#This Row],[Kod KG]],Inne[Data zainicjowania zlecenia przelewu],\">=\"&DATEVALUE(\" 1. \"&Podsumowanie_wydatków_miesięcznych[[#Headers],[Wrzesień]]&_xlfn.SINGLE(_ROK)),Inne[Data zainicjowania zlecenia przelewu],\"<=\"&L$4)","v":{"v":0,"d":"0.00 zł"}},{"$f":"SUMIFS(Wyszczególnione_wydatki[Kwota przelewu],Wyszczególnione_wydatki[Kod KG],Podsumowanie_wydatków_miesięcznych[[#This Row],[Kod KG]],Wyszczególnione_wydatki[Data faktury],\">=\"&M$3,Wyszczególnione_wydatki[Data faktury],\"<=\"&M$4)+SUMIFS(Inne[Kwota przelewu],Inne[Kod KG],Podsumowanie_wydatków_miesięcznych[[#This Row],[Kod KG]],Inne[Data zainicjowania zlecenia przelewu],\">=\"&DATEVALUE(Podsumowanie_wydatków_miesięcznych[[#Headers],[Październik]]&_xlfn.SINGLE(_ROK)),Inne[Data zainicjowania zlecenia przelewu],\"<=\"&M$4)","v":{"v":0,"d":"0.00 zł"}},{"$f":"SUMIFS(Wyszczególnione_wydatki[Kwota przelewu],Wyszczególnione_wydatki[Kod KG],Podsumowanie_wydatków_miesięcznych[[#This Row],[Kod KG]],Wyszczególnione_wydatki[Data faktury],\">=\"&N$3,Wyszczególnione_wydatki[Data faktury],\"<=\"&N$4)+SUMIFS(Inne[Kwota przelewu],Inne[Kod KG],Podsumowanie_wydatków_miesięcznych[[#This Row],[Kod KG]],Inne[Data zainicjowania zlecenia przelewu],\">=\"&DATEVALUE(\" 1. \"&Podsumowanie_wydatków_miesięcznych[[#Headers],[Listopad]]&_xlfn.SINGLE(_ROK)),Inne[Data zainicjowania zlecenia przelewu],\"<=\"&N$4)","v":{"v":0,"d":"0.00 zł"}},{"$f":"SUMIFS(Wyszczególnione_wydatki[Kwota przelewu],Wyszczególnione_wydatki[Kod KG],Podsumowanie_wydatków_miesięcznych[[#This Row],[Kod KG]],Wyszczególnione_wydatki[Data faktury],\">=\"&O$3,Wyszczególnione_wydatki[Data faktury],\"<=\"&O$4)+SUMIFS(Inne[Kwota przelewu],Inne[Kod KG],Podsumowanie_wydatków_miesięcznych[[#This Row],[Kod KG]],Inne[Data zainicjowania zlecenia przelewu],\">=\"&DATEVALUE(\" 1. \"&Podsumowanie_wydatków_miesięcznych[[#Headers],[Grudzień]]&_xlfn.SINGLE(_ROK)),Inne[Data zainicjowania zlecenia przelewu],\"<=\"&O$4)","v":{"v":0,"d":"0.00 zł"}},{"$f":"SUM(Podsumowanie_wydatków_miesięcznych[[#This Row],[Styczeń]:[Grudzień]])","v":{"v":0,"d":"0.00 zł"}}]
[null,3000,"Drukarki",{"$f":"SUMIFS(Wyszczególnione_wydatki[Kwota przelewu],Wyszczególnione_wydatki[Kod KG],Podsumowanie_wydatków_miesięcznych[[#This Row],[Kod KG]],Wyszczególnione_wydatki[Data faktury],\">=\"&D$3,Wyszczególnione_wydatki[Data faktury],\"<=\"&D$4)+SUMIFS(Inne[Kwota przelewu],Inne[Kod KG],Podsumowanie_wydatków_miesięcznych[[#This Row],[Kod KG]],Inne[Data zainicjowania zlecenia przelewu],\">=\"&DATEVALUE(\" 1. \"&Podsumowanie_wydatków_miesięcznych[[#Headers],[Styczeń]]&_xlfn.SINGLE(_ROK)),Inne[Data zainicjowania zlecenia przelewu],\"<=\"&D$4)","v":{"v":0,"d":"0.00 zł"}},{"$f":"SUMIFS(Wyszczególnione_wydatki[Kwota przelewu],Wyszczególnione_wydatki[Kod KG],Podsumowanie_wydatków_miesięcznych[[#This Row],[Kod KG]],Wyszczególnione_wydatki[Data faktury],\">=\"&E$3,Wyszczególnione_wydatki[Data faktury],\"<=\"&E$4)+SUMIFS(Inne[Kwota przelewu],Inne[Kod KG],Podsumowanie_wydatków_miesięcznych[[#This Row],[Kod KG]],Inne[Data zainicjowania zlecenia przelewu],\">=\"&DATEVALUE(\" 1. \"&Podsumowanie_wydatków_miesięcznych[[#Headers],[Luty]]&_xlfn.SINGLE(_ROK)),Inne[Data zainicjowania zlecenia przelewu],\"<=\"&E$4)","v":{"v":0,"d":"0.00 zł"}},{"$f":"SUMIFS(Wyszczególnione_wydatki[Kwota przelewu],Wyszczególnione_wydatki[Kod KG],Podsumowanie_wydatków_miesięcznych[[#This Row],[Kod KG]],Wyszczególnione_wydatki[Data faktury],\">=\"&F$3,Wyszczególnione_wydatki[Data faktury],\"<=\"&F$4)+SUMIFS(Inne[Kwota przelewu],Inne[Kod KG],Podsumowanie_wydatków_miesięcznych[[#This Row],[Kod KG]],Inne[Data zainicjowania zlecenia przelewu],\">=\"&DATEVALUE(\" 1. \"&Podsumowanie_wydatków_miesięcznych[[#Headers],[Marzec]]&_xlfn.SINGLE(_ROK)),Inne[Data zainicjowania zlecenia przelewu],\"<=\"&F$4)","v":{"v":0,"d":"0.00 zł"}},{"$f":"SUMIFS(Wyszczególnione_wydatki[Kwota przelewu],Wyszczególnione_wydatki[Kod KG],Podsumowanie_wydatków_miesięcznych[[#This Row],[Kod KG]],Wyszczególnione_wydatki[Data faktury],\">=\"&G$3,Wyszczególnione_wydatki[Data faktury],\"<=\"&G$4)+SUMIFS(Inne[Kwota przelewu],Inne[Kod KG],Podsumowanie_wydatków_miesięcznych[[#This Row],[Kod KG]],Inne[Data zainicjowania zlecenia przelewu],\">=\"&DATEVALUE(\" 1. \"&Podsumowanie_wydatków_miesięcznych[[#Headers],[Kwiecień]]&_xlfn.SINGLE(_ROK)),Inne[Data zainicjowania zlecenia przelewu],\"<=\"&G$4)","v":{"v":0,"d":"0.00 zł"}},{"$f":"SUMIFS(Wyszczególnione_wydatki[Kwota przelewu],Wyszczególnione_wydatki[Kod KG],Podsumowanie_wydatków_miesięcznych[[#This Row],[Kod KG]],Wyszczególnione_wydatki[Data faktury],\">=\"&H$3,Wyszczególnione_wydatki[Data faktury],\"<=\"&H$4)+SUMIFS(Inne[Kwota przelewu],Inne[Kod KG],Podsumowanie_wydatków_miesięcznych[[#This Row],[Kod KG]],Inne[Data zainicjowania zlecenia przelewu],\">=\"&DATEVALUE(\" 1. \"&Podsumowanie_wydatków_miesięcznych[[#Headers],[Maj]]&_xlfn.SINGLE(_ROK)),Inne[Data zainicjowania zlecenia przelewu],\"<=\"&H$4)","v":{"v":0,"d":"0.00 zł"}},{"$f":"SUMIFS(Wyszczególnione_wydatki[Kwota przelewu],Wyszczególnione_wydatki[Kod KG],Podsumowanie_wydatków_miesięcznych[[#This Row],[Kod KG]],Wyszczególnione_wydatki[Data faktury],\">=\"&I$3,Wyszczególnione_wydatki[Data faktury],\"<=\"&I$4)+SUMIFS(Inne[Kwota przelewu],Inne[Kod KG],Podsumowanie_wydatków_miesięcznych[[#This Row],[Kod KG]],Inne[Data zainicjowania zlecenia przelewu],\">=\"&DATEVALUE(\" 1. \"&Podsumowanie_wydatków_miesięcznych[[#Headers],[Czerwiec]]&_xlfn.SINGLE(_ROK)),Inne[Data zainicjowania zlecenia przelewu],\"<=\"&I$4)","v":{"v":0,"d":"0.00 zł"}},{"$f":"SUMIFS(Wyszczególnione_wydatki[Kwota przelewu],Wyszczególnione_wydatki[Kod KG],Podsumowanie_wydatków_miesięcznych[[#This Row],[Kod KG]],Wyszczególnione_wydatki[Data faktury],\">=\"&J$3,Wyszczególnione_wydatki[Data faktury],\"<=\"&J$4)+SUMIFS(Inne[Kwota przelewu],Inne[Kod KG],Podsumowanie_wydatków_miesięcznych[[#This Row],[Kod KG]],Inne[Data zainicjowania zlecenia przelewu],\">=\"&DATEVALUE(\" 1. \"&Podsumowanie_wydatków_miesięcznych[[#Headers],[Lipiec]]&_xlfn.SINGLE(_ROK)),Inne[Data zainicjowania zlecenia przelewu],\"<=\"&J$4)","v":{"v":0,"d":"0.00 zł"}},{"$f":"SUMIFS(Wyszczególnione_wydatki[Kwota przelewu],Wyszczególnione_wydatki[Kod KG],Podsumowanie_wydatków_miesięcznych[[#This Row],[Kod KG]],Wyszczególnione_wydatki[Data faktury],\">=\"&K$3,Wyszczególnione_wydatki[Data faktury],\"<=\"&K$4)+SUMIFS(Inne[Kwota przelewu],Inne[Kod KG],Podsumowanie_wydatków_miesięcznych[[#This Row],[Kod KG]],Inne[Data zainicjowania zlecenia przelewu],\">=\"&DATEVALUE(\" 1. \"&Podsumowanie_wydatków_miesięcznych[[#Headers],[Sierpień]]&_xlfn.SINGLE(_ROK)),Inne[Data zainicjowania zlecenia przelewu],\"<=\"&K$4)","v":{"v":0,"d":"0.00 zł"}},{"$f":"SUMIFS(Wyszczególnione_wydatki[Kwota przelewu],Wyszczególnione_wydatki[Kod KG],Podsumowanie_wydatków_miesięcznych[[#This Row],[Kod KG]],Wyszczególnione_wydatki[Data faktury],\">=\"&L$3,Wyszczególnione_wydatki[Data faktury],\"<=\"&L$4)+SUMIFS(Inne[Kwota przelewu],Inne[Kod KG],Podsumowanie_wydatków_miesięcznych[[#This Row],[Kod KG]],Inne[Data zainicjowania zlecenia przelewu],\">=\"&DATEVALUE(\" 1. \"&Podsumowanie_wydatków_miesięcznych[[#Headers],[Wrzesień]]&_xlfn.SINGLE(_ROK)),Inne[Data zainicjowania zlecenia przelewu],\"<=\"&L$4)","v":{"v":0,"d":"0.00 zł"}},{"$f":"SUMIFS(Wyszczególnione_wydatki[Kwota przelewu],Wyszczególnione_wydatki[Kod KG],Podsumowanie_wydatków_miesięcznych[[#This Row],[Kod KG]],Wyszczególnione_wydatki[Data faktury],\">=\"&M$3,Wyszczególnione_wydatki[Data faktury],\"<=\"&M$4)+SUMIFS(Inne[Kwota przelewu],Inne[Kod KG],Podsumowanie_wydatków_miesięcznych[[#This Row],[Kod KG]],Inne[Data zainicjowania zlecenia przelewu],\">=\"&DATEVALUE(Podsumowanie_wydatków_miesięcznych[[#Headers],[Październik]]&_xlfn.SINGLE(_ROK)),Inne[Data zainicjowania zlecenia przelewu],\"<=\"&M$4)","v":{"v":0,"d":"0.00 zł"}},{"$f":"SUMIFS(Wyszczególnione_wydatki[Kwota przelewu],Wyszczególnione_wydatki[Kod KG],Podsumowanie_wydatków_miesięcznych[[#This Row],[Kod KG]],Wyszczególnione_wydatki[Data faktury],\">=\"&N$3,Wyszczególnione_wydatki[Data faktury],\"<=\"&N$4)+SUMIFS(Inne[Kwota przelewu],Inne[Kod KG],Podsumowanie_wydatków_miesięcznych[[#This Row],[Kod KG]],Inne[Data zainicjowania zlecenia przelewu],\">=\"&DATEVALUE(\" 1. \"&Podsumowanie_wydatków_miesięcznych[[#Headers],[Listopad]]&_xlfn.SINGLE(_ROK)),Inne[Data zainicjowania zlecenia przelewu],\"<=\"&N$4)","v":{"v":0,"d":"0.00 zł"}},{"$f":"SUMIFS(Wyszczególnione_wydatki[Kwota przelewu],Wyszczególnione_wydatki[Kod KG],Podsumowanie_wydatków_miesięcznych[[#This Row],[Kod KG]],Wyszczególnione_wydatki[Data faktury],\">=\"&O$3,Wyszczególnione_wydatki[Data faktury],\"<=\"&O$4)+SUMIFS(Inne[Kwota przelewu],Inne[Kod KG],Podsumowanie_wydatków_miesięcznych[[#This Row],[Kod KG]],Inne[Data zainicjowania zlecenia przelewu],\">=\"&DATEVALUE(\" 1. \"&Podsumowanie_wydatków_miesięcznych[[#Headers],[Grudzień]]&_xlfn.SINGLE(_ROK)),Inne[Data zainicjowania zlecenia przelewu],\"<=\"&O$4)","v":{"v":0,"d":"0.00 zł"}},{"$f":"SUM(Podsumowanie_wydatków_miesięcznych[[#This Row],[Styczeń]:[Grudzień]])","v":{"v":0,"d":"0.00 zł"}}]
[null,4000,"Koszty serwerów",{"$f":"SUMIFS(Wyszczególnione_wydatki[Kwota przelewu],Wyszczególnione_wydatki[Kod KG],Podsumowanie_wydatków_miesięcznych[[#This Row],[Kod KG]],Wyszczególnione_wydatki[Data faktury],\">=\"&D$3,Wyszczególnione_wydatki[Data faktury],\"<=\"&D$4)+SUMIFS(Inne[Kwota przelewu],Inne[Kod KG],Podsumowanie_wydatków_miesięcznych[[#This Row],[Kod KG]],Inne[Data zainicjowania zlecenia przelewu],\">=\"&DATEVALUE(\" 1. \"&Podsumowanie_wydatków_miesięcznych[[#Headers],[Styczeń]]&_xlfn.SINGLE(_ROK)),Inne[Data zainicjowania zlecenia przelewu],\"<=\"&D$4)","v":{"v":0,"d":"0.00 zł"}},{"$f":"SUMIFS(Wyszczególnione_wydatki[Kwota przelewu],Wyszczególnione_wydatki[Kod KG],Podsumowanie_wydatków_miesięcznych[[#This Row],[Kod KG]],Wyszczególnione_wydatki[Data faktury],\">=\"&E$3,Wyszczególnione_wydatki[Data faktury],\"<=\"&E$4)+SUMIFS(Inne[Kwota przelewu],Inne[Kod KG],Podsumowanie_wydatków_miesięcznych[[#This Row],[Kod KG]],Inne[Data zainicjowania zlecenia przelewu],\">=\"&DATEVALUE(\" 1. \"&Podsumowanie_wydatków_miesięcznych[[#Headers],[Luty]]&_xlfn.SINGLE(_ROK)),Inne[Data zainicjowania zlecenia przelewu],\"<=\"&E$4)","v":{"v":0,"d":"0.00 zł"}},{"$f":"SUMIFS(Wyszczególnione_wydatki[Kwota przelewu],Wyszczególnione_wydatki[Kod KG],Podsumowanie_wydatków_miesięcznych[[#This Row],[Kod KG]],Wyszczególnione_wydatki[Data faktury],\">=\"&F$3,Wyszczególnione_wydatki[Data faktury],\"<=\"&F$4)+SUMIFS(Inne[Kwota przelewu],Inne[Kod KG],Podsumowanie_wydatków_miesięcznych[[#This Row],[Kod KG]],Inne[Data zainicjowania zlecenia przelewu],\">=\"&DATEVALUE(\" 1. \"&Podsumowanie_wydatków_miesięcznych[[#Headers],[Marzec]]&_xlfn.SINGLE(_ROK)),Inne[Data zainicjowania zlecenia przelewu],\"<=\"&F$4)","v":{"v":0,"d":"0.00 zł"}},{"$f":"SUMIFS(Wyszczególnione_wydatki[Kwota przelewu],Wyszczególnione_wydatki[Kod KG],Podsumowanie_wydatków_miesięcznych[[#This Row],[Kod KG]],Wyszczególnione_wydatki[Data faktury],\">=\"&G$3,Wyszczególnione_wydatki[Data faktury],\"<=\"&G$4)+SUMIFS(Inne[Kwota przelewu],Inne[Kod KG],Podsumowanie_wydatków_miesięcznych[[#This Row],[Kod KG]],Inne[Data zainicjowania zlecenia przelewu],\">=\"&DATEVALUE(\" 1. \"&Podsumowanie_wydatków_miesięcznych[[#Headers],[Kwiecień]]&_xlfn.SINGLE(_ROK)),Inne[Data zainicjowania zlecenia przelewu],\"<=\"&G$4)","v":{"v":0,"d":"0.00 zł"}},{"$f":"SUMIFS(Wyszczególnione_wydatki[Kwota przelewu],Wyszczególnione_wydatki[Kod KG],Podsumowanie_wydatków_miesięcznych[[#This Row],[Kod KG]],Wyszczególnione_wydatki[Data faktury],\">=\"&H$3,Wyszczególnione_wydatki[Data faktury],\"<=\"&H$4)+SUMIFS(Inne[Kwota przelewu],Inne[Kod KG],Podsumowanie_wydatków_miesięcznych[[#This Row],[Kod KG]],Inne[Data zainicjowania zlecenia przelewu],\">=\"&DATEVALUE(\" 1. \"&Podsumowanie_wydatków_miesięcznych[[#Headers],[Maj]]&_xlfn.SINGLE(_ROK)),Inne[Data zainicjowania zlecenia przelewu],\"<=\"&H$4)","v":{"v":0,"d":"0.00 zł"}},{"$f":"SUMIFS(Wyszczególnione_wydatki[Kwota przelewu],Wyszczególnione_wydatki[Kod KG],Podsumowanie_wydatków_miesięcznych[[#This Row],[Kod KG]],Wyszczególnione_wydatki[Data faktury],\">=\"&I$3,Wyszczególnione_wydatki[Data faktury],\"<=\"&I$4)+SUMIFS(Inne[Kwota przelewu],Inne[Kod KG],Podsumowanie_wydatków_miesięcznych[[#This Row],[Kod KG]],Inne[Data zainicjowania zlecenia przelewu],\">=\"&DATEVALUE(\" 1. \"&Podsumowanie_wydatków_miesięcznych[[#Headers],[Czerwiec]]&_xlfn.SINGLE(_ROK)),Inne[Data zainicjowania zlecenia przelewu],\"<=\"&I$4)","v":{"v":0,"d":"0.00 zł"}},{"$f":"SUMIFS(Wyszczególnione_wydatki[Kwota przelewu],Wyszczególnione_wydatki[Kod KG],Podsumowanie_wydatków_miesięcznych[[#This Row],[Kod KG]],Wyszczególnione_wydatki[Data faktury],\">=\"&J$3,Wyszczególnione_wydatki[Data faktury],\"<=\"&J$4)+SUMIFS(Inne[Kwota przelewu],Inne[Kod KG],Podsumowanie_wydatków_miesięcznych[[#This Row],[Kod KG]],Inne[Data zainicjowania zlecenia przelewu],\">=\"&DATEVALUE(\" 1. \"&Podsumowanie_wydatków_miesięcznych[[#Headers],[Lipiec]]&_xlfn.SINGLE(_ROK)),Inne[Data zainicjowania zlecenia przelewu],\"<=\"&J$4)","v":{"v":0,"d":"0.00 zł"}},{"$f":"SUMIFS(Wyszczególnione_wydatki[Kwota przelewu],Wyszczególnione_wydatki[Kod KG],Podsumowanie_wydatków_miesięcznych[[#This Row],[Kod KG]],Wyszczególnione_wydatki[Data faktury],\">=\"&K$3,Wyszczególnione_wydatki[Data faktury],\"<=\"&K$4)+SUMIFS(Inne[Kwota przelewu],Inne[Kod KG],Podsumowanie_wydatków_miesięcznych[[#This Row],[Kod KG]],Inne[Data zainicjowania zlecenia przelewu],\">=\"&DATEVALUE(\" 1. \"&Podsumowanie_wydatków_miesięcznych[[#Headers],[Sierpień]]&_xlfn.SINGLE(_ROK)),Inne[Data zainicjowania zlecenia przelewu],\"<=\"&K$4)","v":{"v":0,"d":"0.00 zł"}},{"$f":"SUMIFS(Wyszczególnione_wydatki[Kwota przelewu],Wyszczególnione_wydatki[Kod KG],Podsumowanie_wydatków_miesięcznych[[#This Row],[Kod KG]],Wyszczególnione_wydatki[Data faktury],\">=\"&L$3,Wyszczególnione_wydatki[Data faktury],\"<=\"&L$4)+SUMIFS(Inne[Kwota przelewu],Inne[Kod KG],Podsumowanie_wydatków_miesięcznych[[#This Row],[Kod KG]],Inne[Data zainicjowania zlecenia przelewu],\">=\"&DATEVALUE(\" 1. \"&Podsumowanie_wydatków_miesięcznych[[#Headers],[Wrzesień]]&_xlfn.SINGLE(_ROK)),Inne[Data zainicjowania zlecenia przelewu],\"<=\"&L$4)","v":{"v":0,"d":"0.00 zł"}},{"$f":"SUMIFS(Wyszczególnione_wydatki[Kwota przelewu],Wyszczególnione_wydatki[Kod KG],Podsumowanie_wydatków_miesięcznych[[#This Row],[Kod KG]],Wyszczególnione_wydatki[Data faktury],\">=\"&M$3,Wyszczególnione_wydatki[Data faktury],\"<=\"&M$4)+SUMIFS(Inne[Kwota przelewu],Inne[Kod KG],Podsumowanie_wydatków_miesięcznych[[#This Row],[Kod KG]],Inne[Data zainicjowania zlecenia przelewu],\">=\"&DATEVALUE(Podsumowanie_wydatków_miesięcznych[[#Headers],[Październik]]&_xlfn.SINGLE(_ROK)),Inne[Data zainicjowania zlecenia przelewu],\"<=\"&M$4)","v":{"v":0,"d":"0.00 zł"}},{"$f":"SUMIFS(Wyszczególnione_wydatki[Kwota przelewu],Wyszczególnione_wydatki[Kod KG],Podsumowanie_wydatków_miesięcznych[[#This Row],[Kod KG]],Wyszczególnione_wydatki[Data faktury],\">=\"&N$3,Wyszczególnione_wydatki[Data faktury],\"<=\"&N$4)+SUMIFS(Inne[Kwota przelewu],Inne[Kod KG],Podsumowanie_wydatków_miesięcznych[[#This Row],[Kod KG]],Inne[Data zainicjowania zlecenia przelewu],\">=\"&DATEVALUE(\" 1. \"&Podsumowanie_wydatków_miesięcznych[[#Headers],[Listopad]]&_xlfn.SINGLE(_ROK)),Inne[Data zainicjowania zlecenia przelewu],\"<=\"&N$4)","v":{"v":0,"d":"0.00 zł"}},{"$f":"SUMIFS(Wyszczególnione_wydatki[Kwota przelewu],Wyszczególnione_wydatki[Kod KG],Podsumowanie_wydatków_miesięcznych[[#This Row],[Kod KG]],Wyszczególnione_wydatki[Data faktury],\">=\"&O$3,Wyszczególnione_wydatki[Data faktury],\"<=\"&O$4)+SUMIFS(Inne[Kwota przelewu],Inne[Kod KG],Podsumowanie_wydatków_miesięcznych[[#This Row],[Kod KG]],Inne[Data zainicjowania zlecenia przelewu],\">=\"&DATEVALUE(\" 1. \"&Podsumowanie_wydatków_miesięcznych[[#Headers],[Grudzień]]&_xlfn.SINGLE(_ROK)),Inne[Data zainicjowania zlecenia przelewu],\"<=\"&O$4)","v":{"v":0,"d":"0.00 zł"}},{"$f":"SUM(Podsumowanie_wydatków_miesięcznych[[#This Row],[Styczeń]:[Grudzień]])","v":{"v":0,"d":"0.00 zł"}}]
[null,5000,"Artykuły",{"$f":"SUMIFS(Wyszczególnione_wydatki[Kwota przelewu],Wyszczególnione_wydatki[Kod KG],Podsumowanie_wydatków_miesięcznych[[#This Row],[Kod KG]],Wyszczególnione_wydatki[Data faktury],\">=\"&D$3,Wyszczególnione_wydatki[Data faktury],\"<=\"&D$4)+SUMIFS(Inne[Kwota przelewu],Inne[Kod KG],Podsumowanie_wydatków_miesięcznych[[#This Row],[Kod KG]],Inne[Data zainicjowania zlecenia przelewu],\">=\"&DATEVALUE(\" 1. \"&Podsumowanie_wydatków_miesięcznych[[#Headers],[Styczeń]]&_xlfn.SINGLE(_ROK)),Inne[Data zainicjowania zlecenia przelewu],\"<=\"&D$4)","v":{"v":0,"d":"0.00 zł"}},{"$f":"SUMIFS(Wyszczególnione_wydatki[Kwota przelewu],Wyszczególnione_wydatki[Kod KG],Podsumowanie_wydatków_miesięcznych[[#This Row],[Kod KG]],Wyszczególnione_wydatki[Data faktury],\">=\"&E$3,Wyszczególnione_wydatki[Data faktury],\"<=\"&E$4)+SUMIFS(Inne[Kwota przelewu],Inne[Kod KG],Podsumowanie_wydatków_miesięcznych[[#This Row],[Kod KG]],Inne[Data zainicjowania zlecenia przelewu],\">=\"&DATEVALUE(\" 1. \"&Podsumowanie_wydatków_miesięcznych[[#Headers],[Luty]]&_xlfn.SINGLE(_ROK)),Inne[Data zainicjowania zlecenia przelewu],\"<=\"&E$4)","v":{"v":0,"d":"0.00 zł"}},{"$f":"SUMIFS(Wyszczególnione_wydatki[Kwota przelewu],Wyszczególnione_wydatki[Kod KG],Podsumowanie_wydatków_miesięcznych[[#This Row],[Kod KG]],Wyszczególnione_wydatki[Data faktury],\">=\"&F$3,Wyszczególnione_wydatki[Data faktury],\"<=\"&F$4)+SUMIFS(Inne[Kwota przelewu],Inne[Kod KG],Podsumowanie_wydatków_miesięcznych[[#This Row],[Kod KG]],Inne[Data zainicjowania zlecenia przelewu],\">=\"&DATEVALUE(\" 1. \"&Podsumowanie_wydatków_miesięcznych[[#Headers],[Marzec]]&_xlfn.SINGLE(_ROK)),Inne[Data zainicjowania zlecenia przelewu],\"<=\"&F$4)","v":{"v":0,"d":"0.00 zł"}},{"$f":"SUMIFS(Wyszczególnione_wydatki[Kwota przelewu],Wyszczególnione_wydatki[Kod KG],Podsumowanie_wydatków_miesięcznych[[#This Row],[Kod KG]],Wyszczególnione_wydatki[Data faktury],\">=\"&G$3,Wyszczególnione_wydatki[Data faktury],\"<=\"&G$4)+SUMIFS(Inne[Kwota przelewu],Inne[Kod KG],Podsumowanie_wydatków_miesięcznych[[#This Row],[Kod KG]],Inne[Data zainicjowania zlecenia przelewu],\">=\"&DATEVALUE(\" 1. \"&Podsumowanie_wydatków_miesięcznych[[#Headers],[Kwiecień]]&_xlfn.SINGLE(_ROK)),Inne[Data zainicjowania zlecenia przelewu],\"<=\"&G$4)","v":{"v":0,"d":"0.00 zł"}},{"$f":"SUMIFS(Wyszczególnione_wydatki[Kwota przelewu],Wyszczególnione_wydatki[Kod KG],Podsumowanie_wydatków_miesięcznych[[#This Row],[Kod KG]],Wyszczególnione_wydatki[Data faktury],\">=\"&H$3,Wyszczególnione_wydatki[Data faktury],\"<=\"&H$4)+SUMIFS(Inne[Kwota przelewu],Inne[Kod KG],Podsumowanie_wydatków_miesięcznych[[#This Row],[Kod KG]],Inne[Data zainicjowania zlecenia przelewu],\">=\"&DATEVALUE(\" 1. \"&Podsumowanie_wydatków_miesięcznych[[#Headers],[Maj]]&_xlfn.SINGLE(_ROK)),Inne[Data zainicjowania zlecenia przelewu],\"<=\"&H$4)","v":{"v":0,"d":"0.00 zł"}},{"$f":"SUMIFS(Wyszczególnione_wydatki[Kwota przelewu],Wyszczególnione_wydatki[Kod KG],Podsumowanie_wydatków_miesięcznych[[#This Row],[Kod KG]],Wyszczególnione_wydatki[Data faktury],\">=\"&I$3,Wyszczególnione_wydatki[Data faktury],\"<=\"&I$4)+SUMIFS(Inne[Kwota przelewu],Inne[Kod KG],Podsumowanie_wydatków_miesięcznych[[#This Row],[Kod KG]],Inne[Data zainicjowania zlecenia przelewu],\">=\"&DATEVALUE(\" 1. \"&Podsumowanie_wydatków_miesięcznych[[#Headers],[Czerwiec]]&_xlfn.SINGLE(_ROK)),Inne[Data zainicjowania zlecenia przelewu],\"<=\"&I$4)","v":{"v":0,"d":"0.00 zł"}},{"$f":"SUMIFS(Wyszczególnione_wydatki[Kwota przelewu],Wyszczególnione_wydatki[Kod KG],Podsumowanie_wydatków_miesięcznych[[#This Row],[Kod KG]],Wyszczególnione_wydatki[Data faktury],\">=\"&J$3,Wyszczególnione_wydatki[Data faktury],\"<=\"&J$4)+SUMIFS(Inne[Kwota przelewu],Inne[Kod KG],Podsumowanie_wydatków_miesięcznych[[#This Row],[Kod KG]],Inne[Data zainicjowania zlecenia przelewu],\">=\"&DATEVALUE(\" 1. \"&Podsumowanie_wydatków_miesięcznych[[#Headers],[Lipiec]]&_xlfn.SINGLE(_ROK)),Inne[Data zainicjowania zlecenia przelewu],\"<=\"&J$4)","v":{"v":0,"d":"0.00 zł"}},{"$f":"SUMIFS(Wyszczególnione_wydatki[Kwota przelewu],Wyszczególnione_wydatki[Kod KG],Podsumowanie_wydatków_miesięcznych[[#This Row],[Kod KG]],Wyszczególnione_wydatki[Data faktury],\">=\"&K$3,Wyszczególnione_wydatki[Data faktury],\"<=\"&K$4)+SUMIFS(Inne[Kwota przelewu],Inne[Kod KG],Podsumowanie_wydatków_miesięcznych[[#This Row],[Kod KG]],Inne[Data zainicjowania zlecenia przelewu],\">=\"&DATEVALUE(\" 1. \"&Podsumowanie_wydatków_miesięcznych[[#Headers],[Sierpień]]&_xlfn.SINGLE(_ROK)),Inne[Data zainicjowania zlecenia przelewu],\"<=\"&K$4)","v":{"v":0,"d":"0.00 zł"}},{"$f":"SUMIFS(Wyszczególnione_wydatki[Kwota przelewu],Wyszczególnione_wydatki[Kod KG],Podsumowanie_wydatków_miesięcznych[[#This Row],[Kod KG]],Wyszczególnione_wydatki[Data faktury],\">=\"&L$3,Wyszczególnione_wydatki[Data faktury],\"<=\"&L$4)+SUMIFS(Inne[Kwota przelewu],Inne[Kod KG],Podsumowanie_wydatków_miesięcznych[[#This Row],[Kod KG]],Inne[Data zainicjowania zlecenia przelewu],\">=\"&DATEVALUE(\" 1. \"&Podsumowanie_wydatków_miesięcznych[[#Headers],[Wrzesień]]&_xlfn.SINGLE(_ROK)),Inne[Data zainicjowania zlecenia przelewu],\"<=\"&L$4)","v":{"v":0,"d":"0.00 zł"}},{"$f":"SUMIFS(Wyszczególnione_wydatki[Kwota przelewu],Wyszczególnione_wydatki[Kod KG],Podsumowanie_wydatków_miesięcznych[[#This Row],[Kod KG]],Wyszczególnione_wydatki[Data faktury],\">=\"&M$3,Wyszczególnione_wydatki[Data faktury],\"<=\"&M$4)+SUMIFS(Inne[Kwota przelewu],Inne[Kod KG],Podsumowanie_wydatków_miesięcznych[[#This Row],[Kod KG]],Inne[Data zainicjowania zlecenia przelewu],\">=\"&DATEVALUE(Podsumowanie_wydatków_miesięcznych[[#Headers],[Październik]]&_xlfn.SINGLE(_ROK)),Inne[Data zainicjowania zlecenia przelewu],\"<=\"&M$4)","v":{"v":0,"d":"0.00 zł"}},{"$f":"SUMIFS(Wyszczególnione_wydatki[Kwota przelewu],Wyszczególnione_wydatki[Kod KG],Podsumowanie_wydatków_miesięcznych[[#This Row],[Kod KG]],Wyszczególnione_wydatki[Data faktury],\">=\"&N$3,Wyszczególnione_wydatki[Data faktury],\"<=\"&N$4)+SUMIFS(Inne[Kwota przelewu],Inne[Kod KG],Podsumowanie_wydatków_miesięcznych[[#This Row],[Kod KG]],Inne[Data zainicjowania zlecenia przelewu],\">=\"&DATEVALUE(\" 1. \"&Podsumowanie_wydatków_miesięcznych[[#Headers],[Listopad]]&_xlfn.SINGLE(_ROK)),Inne[Data zainicjowania zlecenia przelewu],\"<=\"&N$4)","v":{"v":0,"d":"0.00 zł"}},{"$f":"SUMIFS(Wyszczególnione_wydatki[Kwota przelewu],Wyszczególnione_wydatki[Kod KG],Podsumowanie_wydatków_miesięcznych[[#This Row],[Kod KG]],Wyszczególnione_wydatki[Data faktury],\">=\"&O$3,Wyszczególnione_wydatki[Data faktury],\"<=\"&O$4)+SUMIFS(Inne[Kwota przelewu],Inne[Kod KG],Podsumowanie_wydatków_miesięcznych[[#This Row],[Kod KG]],Inne[Data zainicjowania zlecenia przelewu],\">=\"&DATEVALUE(\" 1. \"&Podsumowanie_wydatków_miesięcznych[[#Headers],[Grudzień]]&_xlfn.SINGLE(_ROK)),Inne[Data zainicjowania zlecenia przelewu],\"<=\"&O$4)","v":{"v":0,"d":"0.00 zł"}},{"$f":"SUM(Podsumowanie_wydatków_miesięcznych[[#This Row],[Styczeń]:[Grudzień]])","v":{"v":0,"d":"0.00 zł"}}]
[null,6000,"Wydatki dot. klientów",{"$f":"SUMIFS(Wyszczególnione_wydatki[Kwota przelewu],Wyszczególnione_wydatki[Kod KG],Podsumowanie_wydatków_miesięcznych[[#This Row],[Kod KG]],Wyszczególnione_wydatki[Data faktury],\">=\"&D$3,Wyszczególnione_wydatki[Data faktury],\"<=\"&D$4)+SUMIFS(Inne[Kwota przelewu],Inne[Kod KG],Podsumowanie_wydatków_miesięcznych[[#This Row],[Kod KG]],Inne[Data zainicjowania zlecenia przelewu],\">=\"&DATEVALUE(\" 1. \"&Podsumowanie_wydatków_miesięcznych[[#Headers],[Styczeń]]&_xlfn.SINGLE(_ROK)),Inne[Data zainicjowania zlecenia przelewu],\"<=\"&D$4)","v":{"v":0,"d":"0.00 zł"}},{"$f":"SUMIFS(Wyszczególnione_wydatki[Kwota przelewu],Wyszczególnione_wydatki[Kod KG],Podsumowanie_wydatków_miesięcznych[[#This Row],[Kod KG]],Wyszczególnione_wydatki[Data faktury],\">=\"&E$3,Wyszczególnione_wydatki[Data faktury],\"<=\"&E$4)+SUMIFS(Inne[Kwota przelewu],Inne[Kod KG],Podsumowanie_wydatków_miesięcznych[[#This Row],[Kod KG]],Inne[Data zainicjowania zlecenia przelewu],\">=\"&DATEVALUE(\" 1. \"&Podsumowanie_wydatków_miesięcznych[[#Headers],[Luty]]&_xlfn.SINGLE(_ROK)),Inne[Data zainicjowania zlecenia przelewu],\"<=\"&E$4)","v":{"v":0,"d":"0.00 zł"}},{"$f":"SUMIFS(Wyszczególnione_wydatki[Kwota przelewu],Wyszczególnione_wydatki[Kod KG],Podsumowanie_wydatków_miesięcznych[[#This Row],[Kod KG]],Wyszczególnione_wydatki[Data faktury],\">=\"&F$3,Wyszczególnione_wydatki[Data faktury],\"<=\"&F$4)+SUMIFS(Inne[Kwota przelewu],Inne[Kod KG],Podsumowanie_wydatków_miesięcznych[[#This Row],[Kod KG]],Inne[Data zainicjowania zlecenia przelewu],\">=\"&DATEVALUE(\" 1. \"&Podsumowanie_wydatków_miesięcznych[[#Headers],[Marzec]]&_xlfn.SINGLE(_ROK)),Inne[Data zainicjowania zlecenia przelewu],\"<=\"&F$4)","v":{"v":0,"d":"0.00 zł"}},{"$f":"SUMIFS(Wyszczególnione_wydatki[Kwota przelewu],Wyszczególnione_wydatki[Kod KG],Podsumowanie_wydatków_miesięcznych[[#This Row],[Kod KG]],Wyszczególnione_wydatki[Data faktury],\">=\"&G$3,Wyszczególnione_wydatki[Data faktury],\"<=\"&G$4)+SUMIFS(Inne[Kwota przelewu],Inne[Kod KG],Podsumowanie_wydatków_miesięcznych[[#This Row],[Kod KG]],Inne[Data zainicjowania zlecenia przelewu],\">=\"&DATEVALUE(\" 1. \"&Podsumowanie_wydatków_miesięcznych[[#Headers],[Kwiecień]]&_xlfn.SINGLE(_ROK)),Inne[Data zainicjowania zlecenia przelewu],\"<=\"&G$4)","v":{"v":0,"d":"0.00 zł"}},{"$f":"SUMIFS(Wyszczególnione_wydatki[Kwota przelewu],Wyszczególnione_wydatki[Kod KG],Podsumowanie_wydatków_miesięcznych[[#This Row],[Kod KG]],Wyszczególnione_wydatki[Data faktury],\">=\"&H$3,Wyszczególnione_wydatki[Data faktury],\"<=\"&H$4)+SUMIFS(Inne[Kwota przelewu],Inne[Kod KG],Podsumowanie_wydatków_miesięcznych[[#This Row],[Kod KG]],Inne[Data zainicjowania zlecenia przelewu],\">=\"&DATEVALUE(\" 1. \"&Podsumowanie_wydatków_miesięcznych[[#Headers],[Maj]]&_xlfn.SINGLE(_ROK)),Inne[Data zainicjowania zlecenia przelewu],\"<=\"&H$4)","v":{"v":0,"d":"0.00 zł"}},{"$f":"SUMIFS(Wyszczególnione_wydatki[Kwota przelewu],Wyszczególnione_wydatki[Kod KG],Podsumowanie_wydatków_miesięcznych[[#This Row],[Kod KG]],Wyszczególnione_wydatki[Data faktury],\">=\"&I$3,Wyszczególnione_wydatki[Data faktury],\"<=\"&I$4)+SUMIFS(Inne[Kwota przelewu],Inne[Kod KG],Podsumowanie_wydatków_miesięcznych[[#This Row],[Kod KG]],Inne[Data zainicjowania zlecenia przelewu],\">=\"&DATEVALUE(\" 1. \"&Podsumowanie_wydatków_miesięcznych[[#Headers],[Czerwiec]]&_xlfn.SINGLE(_ROK)),Inne[Data zainicjowania zlecenia przelewu],\"<=\"&I$4)","v":{"v":0,"d":"0.00 zł"}},{"$f":"SUMIFS(Wyszczególnione_wydatki[Kwota przelewu],Wyszczególnione_wydatki[Kod KG],Podsumowanie_wydatków_miesięcznych[[#This Row],[Kod KG]],Wyszczególnione_wydatki[Data faktury],\">=\"&J$3,Wyszczególnione_wydatki[Data faktury],\"<=\"&J$4)+SUMIFS(Inne[Kwota przelewu],Inne[Kod KG],Podsumowanie_wydatków_miesięcznych[[#This Row],[Kod KG]],Inne[Data zainicjowania zlecenia przelewu],\">=\"&DATEVALUE(\" 1. \"&Podsumowanie_wydatków_miesięcznych[[#Headers],[Lipiec]]&_xlfn.SINGLE(_ROK)),Inne[Data zainicjowania zlecenia przelewu],\"<=\"&J$4)","v":{"v":0,"d":"0.00 zł"}},{"$f":"SUMIFS(Wyszczególnione_wydatki[Kwota przelewu],Wyszczególnione_wydatki[Kod KG],Podsumowanie_wydatków_miesięcznych[[#This Row],[Kod KG]],Wyszczególnione_wydatki[Data faktury],\">=\"&K$3,Wyszczególnione_wydatki[Data faktury],\"<=\"&K$4)+SUMIFS(Inne[Kwota przelewu],Inne[Kod KG],Podsumowanie_wydatków_miesięcznych[[#This Row],[Kod KG]],Inne[Data zainicjowania zlecenia przelewu],\">=\"&DATEVALUE(\" 1. \"&Podsumowanie_wydatków_miesięcznych[[#Headers],[Sierpień]]&_xlfn.SINGLE(_ROK)),Inne[Data zainicjowania zlecenia przelewu],\"<=\"&K$4)","v":{"v":0,"d":"0.00 zł"}},{"$f":"SUMIFS(Wyszczególnione_wydatki[Kwota przelewu],Wyszczególnione_wydatki[Kod KG],Podsumowanie_wydatków_miesięcznych[[#This Row],[Kod KG]],Wyszczególnione_wydatki[Data faktury],\">=\"&L$3,Wyszczególnione_wydatki[Data faktury],\"<=\"&L$4)+SUMIFS(Inne[Kwota przelewu],Inne[Kod KG],Podsumowanie_wydatków_miesięcznych[[#This Row],[Kod KG]],Inne[Data zainicjowania zlecenia przelewu],\">=\"&DATEVALUE(\" 1. \"&Podsumowanie_wydatków_miesięcznych[[#Headers],[Wrzesień]]&_xlfn.SINGLE(_ROK)),Inne[Data zainicjowania zlecenia przelewu],\"<=\"&L$4)","v":{"v":0,"d":"0.00 zł"}},{"$f":"SUMIFS(Wyszczególnione_wydatki[Kwota przelewu],Wyszczególnione_wydatki[Kod KG],Podsumowanie_wydatków_miesięcznych[[#This Row],[Kod KG]],Wyszczególnione_wydatki[Data faktury],\">=\"&M$3,Wyszczególnione_wydatki[Data faktury],\"<=\"&M$4)+SUMIFS(Inne[Kwota przelewu],Inne[Kod KG],Podsumowanie_wydatków_miesięcznych[[#This Row],[Kod KG]],Inne[Data zainicjowania zlecenia przelewu],\">=\"&DATEVALUE(Podsumowanie_wydatków_miesięcznych[[#Headers],[Październik]]&_xlfn.SINGLE(_ROK)),Inne[Data zainicjowania zlecenia przelewu],\"<=\"&M$4)","v":{"v":0,"d":"0.00 zł"}},{"$f":"SUMIFS(Wyszczególnione_wydatki[Kwota przelewu],Wyszczególnione_wydatki[Kod KG],Podsumowanie_wydatków_miesięcznych[[#This Row],[Kod KG]],Wyszczególnione_wydatki[Data faktury],\">=\"&N$3,Wyszczególnione_wydatki[Data faktury],\"<=\"&N$4)+SUMIFS(Inne[Kwota przelewu],Inne[Kod KG],Podsumowanie_wydatków_miesięcznych[[#This Row],[Kod KG]],Inne[Data zainicjowania zlecenia przelewu],\">=\"&DATEVALUE(\" 1. \"&Podsumowanie_wydatków_miesięcznych[[#Headers],[Listopad]]&_xlfn.SINGLE(_ROK)),Inne[Data zainicjowania zlecenia przelewu],\"<=\"&N$4)","v":{"v":0,"d":"0.00 zł"}},{"$f":"SUMIFS(Wyszczególnione_wydatki[Kwota przelewu],Wyszczególnione_wydatki[Kod KG],Podsumowanie_wydatków_miesięcznych[[#This Row],[Kod KG]],Wyszczególnione_wydatki[Data faktury],\">=\"&O$3,Wyszczególnione_wydatki[Data faktury],\"<=\"&O$4)+SUMIFS(Inne[Kwota przelewu],Inne[Kod KG],Podsumowanie_wydatków_miesięcznych[[#This Row],[Kod KG]],Inne[Data zainicjowania zlecenia przelewu],\">=\"&DATEVALUE(\" 1. \"&Podsumowanie_wydatków_miesięcznych[[#Headers],[Grudzień]]&_xlfn.SINGLE(_ROK)),Inne[Data zainicjowania zlecenia przelewu],\"<=\"&O$4)","v":{"v":0,"d":"0.00 zł"}},{"$f":"SUM(Podsumowanie_wydatków_miesięcznych[[#This Row],[Styczeń]:[Grudzień]])","v":{"v":0,"d":"0.00 zł"}}]
[null,7000,"Komputery",{"$f":"SUMIFS(Wyszczególnione_wydatki[Kwota przelewu],Wyszczególnione_wydatki[Kod KG],Podsumowanie_wydatków_miesięcznych[[#This Row],[Kod KG]],Wyszczególnione_wydatki[Data faktury],\">=\"&D$3,Wyszczególnione_wydatki[Data faktury],\"<=\"&D$4)+SUMIFS(Inne[Kwota przelewu],Inne[Kod KG],Podsumowanie_wydatków_miesięcznych[[#This Row],[Kod KG]],Inne[Data zainicjowania zlecenia przelewu],\">=\"&DATEVALUE(\" 1. \"&Podsumowanie_wydatków_miesięcznych[[#Headers],[Styczeń]]&_xlfn.SINGLE(_ROK)),Inne[Data zainicjowania zlecenia przelewu],\"<=\"&D$4)","v":{"v":0,"d":"0.00 zł"}},{"$f":"SUMIFS(Wyszczególnione_wydatki[Kwota przelewu],Wyszczególnione_wydatki[Kod KG],Podsumowanie_wydatków_miesięcznych[[#This Row],[Kod KG]],Wyszczególnione_wydatki[Data faktury],\">=\"&E$3,Wyszczególnione_wydatki[Data faktury],\"<=\"&E$4)+SUMIFS(Inne[Kwota przelewu],Inne[Kod KG],Podsumowanie_wydatków_miesięcznych[[#This Row],[Kod KG]],Inne[Data zainicjowania zlecenia przelewu],\">=\"&DATEVALUE(\" 1. \"&Podsumowanie_wydatków_miesięcznych[[#Headers],[Luty]]&_xlfn.SINGLE(_ROK)),Inne[Data zainicjowania zlecenia przelewu],\"<=\"&E$4)","v":{"v":0,"d":"0.00 zł"}},{"$f":"SUMIFS(Wyszczególnione_wydatki[Kwota przelewu],Wyszczególnione_wydatki[Kod KG],Podsumowanie_wydatków_miesięcznych[[#This Row],[Kod KG]],Wyszczególnione_wydatki[Data faktury],\">=\"&F$3,Wyszczególnione_wydatki[Data faktury],\"<=\"&F$4)+SUMIFS(Inne[Kwota przelewu],Inne[Kod KG],Podsumowanie_wydatków_miesięcznych[[#This Row],[Kod KG]],Inne[Data zainicjowania zlecenia przelewu],\">=\"&DATEVALUE(\" 1. \"&Podsumowanie_wydatków_miesięcznych[[#Headers],[Marzec]]&_xlfn.SINGLE(_ROK)),Inne[Data zainicjowania zlecenia przelewu],\"<=\"&F$4)","v":{"v":0,"d":"0.00 zł"}},{"$f":"SUMIFS(Wyszczególnione_wydatki[Kwota przelewu],Wyszczególnione_wydatki[Kod KG],Podsumowanie_wydatków_miesięcznych[[#This Row],[Kod KG]],Wyszczególnione_wydatki[Data faktury],\">=\"&G$3,Wyszczególnione_wydatki[Data faktury],\"<=\"&G$4)+SUMIFS(Inne[Kwota przelewu],Inne[Kod KG],Podsumowanie_wydatków_miesięcznych[[#This Row],[Kod KG]],Inne[Data zainicjowania zlecenia przelewu],\">=\"&DATEVALUE(\" 1. \"&Podsumowanie_wydatków_miesięcznych[[#Headers],[Kwiecień]]&_xlfn.SINGLE(_ROK)),Inne[Data zainicjowania zlecenia przelewu],\"<=\"&G$4)","v":{"v":0,"d":"0.00 zł"}},{"$f":"SUMIFS(Wyszczególnione_wydatki[Kwota przelewu],Wyszczególnione_wydatki[Kod KG],Podsumowanie_wydatków_miesięcznych[[#This Row],[Kod KG]],Wyszczególnione_wydatki[Data faktury],\">=\"&H$3,Wyszczególnione_wydatki[Data faktury],\"<=\"&H$4)+SUMIFS(Inne[Kwota przelewu],Inne[Kod KG],Podsumowanie_wydatków_miesięcznych[[#This Row],[Kod KG]],Inne[Data zainicjowania zlecenia przelewu],\">=\"&DATEVALUE(\" 1. \"&Podsumowanie_wydatków_miesięcznych[[#Headers],[Maj]]&_xlfn.SINGLE(_ROK)),Inne[Data zainicjowania zlecenia przelewu],\"<=\"&H$4)","v":{"v":0,"d":"0.00 zł"}},{"$f":"SUMIFS(Wyszczególnione_wydatki[Kwota przelewu],Wyszczególnione_wydatki[Kod KG],Podsumowanie_wydatków_miesięcznych[[#This Row],[Kod KG]],Wyszczególnione_wydatki[Data faktury],\">=\"&I$3,Wyszczególnione_wydatki[Data faktury],\"<=\"&I$4)+SUMIFS(Inne[Kwota przelewu],Inne[Kod KG],Podsumowanie_wydatków_miesięcznych[[#This Row],[Kod KG]],Inne[Data zainicjowania zlecenia przelewu],\">=\"&DATEVALUE(\" 1. \"&Podsumowanie_wydatków_miesięcznych[[#Headers],[Czerwiec]]&_xlfn.SINGLE(_ROK)),Inne[Data zainicjowania zlecenia przelewu],\"<=\"&I$4)","v":{"v":0,"d":"0.00 zł"}},{"$f":"SUMIFS(Wyszczególnione_wydatki[Kwota przelewu],Wyszczególnione_wydatki[Kod KG],Podsumowanie_wydatków_miesięcznych[[#This Row],[Kod KG]],Wyszczególnione_wydatki[Data faktury],\">=\"&J$3,Wyszczególnione_wydatki[Data faktury],\"<=\"&J$4)+SUMIFS(Inne[Kwota przelewu],Inne[Kod KG],Podsumowanie_wydatków_miesięcznych[[#This Row],[Kod KG]],Inne[Data zainicjowania zlecenia przelewu],\">=\"&DATEVALUE(\" 1. \"&Podsumowanie_wydatków_miesięcznych[[#Headers],[Lipiec]]&_xlfn.SINGLE(_ROK)),Inne[Data zainicjowania zlecenia przelewu],\"<=\"&J$4)","v":{"v":0,"d":"0.00 zł"}},{"$f":"SUMIFS(Wyszczególnione_wydatki[Kwota przelewu],Wyszczególnione_wydatki[Kod KG],Podsumowanie_wydatków_miesięcznych[[#This Row],[Kod KG]],Wyszczególnione_wydatki[Data faktury],\">=\"&K$3,Wyszczególnione_wydatki[Data faktury],\"<=\"&K$4)+SUMIFS(Inne[Kwota przelewu],Inne[Kod KG],Podsumowanie_wydatków_miesięcznych[[#This Row],[Kod KG]],Inne[Data zainicjowania zlecenia przelewu],\">=\"&DATEVALUE(\" 1. \"&Podsumowanie_wydatków_miesięcznych[[#Headers],[Sierpień]]&_xlfn.SINGLE(_ROK)),Inne[Data zainicjowania zlecenia przelewu],\"<=\"&K$4)","v":{"v":0,"d":"0.00 zł"}},{"$f":"SUMIFS(Wyszczególnione_wydatki[Kwota przelewu],Wyszczególnione_wydatki[Kod KG],Podsumowanie_wydatków_miesięcznych[[#This Row],[Kod KG]],Wyszczególnione_wydatki[Data faktury],\">=\"&L$3,Wyszczególnione_wydatki[Data faktury],\"<=\"&L$4)+SUMIFS(Inne[Kwota przelewu],Inne[Kod KG],Podsumowanie_wydatków_miesięcznych[[#This Row],[Kod KG]],Inne[Data zainicjowania zlecenia przelewu],\">=\"&DATEVALUE(\" 1. \"&Podsumowanie_wydatków_miesięcznych[[#Headers],[Wrzesień]]&_xlfn.SINGLE(_ROK)),Inne[Data zainicjowania zlecenia przelewu],\"<=\"&L$4)","v":{"v":0,"d":"0.00 zł"}},{"$f":"SUMIFS(Wyszczególnione_wydatki[Kwota przelewu],Wyszczególnione_wydatki[Kod KG],Podsumowanie_wydatków_miesięcznych[[#This Row],[Kod KG]],Wyszczególnione_wydatki[Data faktury],\">=\"&M$3,Wyszczególnione_wydatki[Data faktury],\"<=\"&M$4)+SUMIFS(Inne[Kwota przelewu],Inne[Kod KG],Podsumowanie_wydatków_miesięcznych[[#This Row],[Kod KG]],Inne[Data zainicjowania zlecenia przelewu],\">=\"&DATEVALUE(Podsumowanie_wydatków_miesięcznych[[#Headers],[Październik]]&_xlfn.SINGLE(_ROK)),Inne[Data zainicjowania zlecenia przelewu],\"<=\"&M$4)","v":{"v":0,"d":"0.00 zł"}},{"$f":"SUMIFS(Wyszczególnione_wydatki[Kwota przelewu],Wyszczególnione_wydatki[Kod KG],Podsumowanie_wydatków_miesięcznych[[#This Row],[Kod KG]],Wyszczególnione_wydatki[Data faktury],\">=\"&N$3,Wyszczególnione_wydatki[Data faktury],\"<=\"&N$4)+SUMIFS(Inne[Kwota przelewu],Inne[Kod KG],Podsumowanie_wydatków_miesięcznych[[#This Row],[Kod KG]],Inne[Data zainicjowania zlecenia przelewu],\">=\"&DATEVALUE(\" 1. \"&Podsumowanie_wydatków_miesięcznych[[#Headers],[Listopad]]&_xlfn.SINGLE(_ROK)),Inne[Data zainicjowania zlecenia przelewu],\"<=\"&N$4)","v":{"v":0,"d":"0.00 zł"}},{"$f":"SUMIFS(Wyszczególnione_wydatki[Kwota przelewu],Wyszczególnione_wydatki[Kod KG],Podsumowanie_wydatków_miesięcznych[[#This Row],[Kod KG]],Wyszczególnione_wydatki[Data faktury],\">=\"&O$3,Wyszczególnione_wydatki[Data faktury],\"<=\"&O$4)+SUMIFS(Inne[Kwota przelewu],Inne[Kod KG],Podsumowanie_wydatków_miesięcznych[[#This Row],[Kod KG]],Inne[Data zainicjowania zlecenia przelewu],\">=\"&DATEVALUE(\" 1. \"&Podsumowanie_wydatków_miesięcznych[[#Headers],[Grudzień]]&_xlfn.SINGLE(_ROK)),Inne[Data zainicjowania zlecenia przelewu],\"<=\"&O$4)","v":{"v":0,"d":"0.00 zł"}},{"$f":"SUM(Podsumowanie_wydatków_miesięcznych[[#This Row],[Styczeń]:[Grudzień]])","v":{"v":0,"d":"0.00 zł"}}]
[null,8000,"Program opieki medycznej",{"$f":"SUMIFS(Wyszczególnione_wydatki[Kwota przelewu],Wyszczególnione_wydatki[Kod KG],Podsumowanie_wydatków_miesięcznych[[#This Row],[Kod KG]],Wyszczególnione_wydatki[Data faktury],\">=\"&D$3,Wyszczególnione_wydatki[Data faktury],\"<=\"&D$4)+SUMIFS(Inne[Kwota przelewu],Inne[Kod KG],Podsumowanie_wydatków_miesięcznych[[#This Row],[Kod KG]],Inne[Data zainicjowania zlecenia przelewu],\">=\"&DATEVALUE(\" 1. \"&Podsumowanie_wydatków_miesięcznych[[#Headers],[Styczeń]]&_xlfn.SINGLE(_ROK)),Inne[Data zainicjowania zlecenia przelewu],\"<=\"&D$4)","v":{"v":0,"d":"0.00 zł"}},{"$f":"SUMIFS(Wyszczególnione_wydatki[Kwota przelewu],Wyszczególnione_wydatki[Kod KG],Podsumowanie_wydatków_miesięcznych[[#This Row],[Kod KG]],Wyszczególnione_wydatki[Data faktury],\">=\"&E$3,Wyszczególnione_wydatki[Data faktury],\"<=\"&E$4)+SUMIFS(Inne[Kwota przelewu],Inne[Kod KG],Podsumowanie_wydatków_miesięcznych[[#This Row],[Kod KG]],Inne[Data zainicjowania zlecenia przelewu],\">=\"&DATEVALUE(\" 1. \"&Podsumowanie_wydatków_miesięcznych[[#Headers],[Luty]]&_xlfn.SINGLE(_ROK)),Inne[Data zainicjowania zlecenia przelewu],\"<=\"&E$4)","v":{"v":0,"d":"0.00 zł"}},{"$f":"SUMIFS(Wyszczególnione_wydatki[Kwota przelewu],Wyszczególnione_wydatki[Kod KG],Podsumowanie_wydatków_miesięcznych[[#This Row],[Kod KG]],Wyszczególnione_wydatki[Data faktury],\">=\"&F$3,Wyszczególnione_wydatki[Data faktury],\"<=\"&F$4)+SUMIFS(Inne[Kwota przelewu],Inne[Kod KG],Podsumowanie_wydatków_miesięcznych[[#This Row],[Kod KG]],Inne[Data zainicjowania zlecenia przelewu],\">=\"&DATEVALUE(\" 1. \"&Podsumowanie_wydatków_miesięcznych[[#Headers],[Marzec]]&_xlfn.SINGLE(_ROK)),Inne[Data zainicjowania zlecenia przelewu],\"<=\"&F$4)","v":{"v":0,"d":"0.00 zł"}},{"$f":"SUMIFS(Wyszczególnione_wydatki[Kwota przelewu],Wyszczególnione_wydatki[Kod KG],Podsumowanie_wydatków_miesięcznych[[#This Row],[Kod KG]],Wyszczególnione_wydatki[Data faktury],\">=\"&G$3,Wyszczególnione_wydatki[Data faktury],\"<=\"&G$4)+SUMIFS(Inne[Kwota przelewu],Inne[Kod KG],Podsumowanie_wydatków_miesięcznych[[#This Row],[Kod KG]],Inne[Data zainicjowania zlecenia przelewu],\">=\"&DATEVALUE(\" 1. \"&Podsumowanie_wydatków_miesięcznych[[#Headers],[Kwiecień]]&_xlfn.SINGLE(_ROK)),Inne[Data zainicjowania zlecenia przelewu],\"<=\"&G$4)","v":{"v":0,"d":"0.00 zł"}},{"$f":"SUMIFS(Wyszczególnione_wydatki[Kwota przelewu],Wyszczególnione_wydatki[Kod KG],Podsumowanie_wydatków_miesięcznych[[#This Row],[Kod KG]],Wyszczególnione_wydatki[Data faktury],\">=\"&H$3,Wyszczególnione_wydatki[Data faktury],\"<=\"&H$4)+SUMIFS(Inne[Kwota przelewu],Inne[Kod KG],Podsumowanie_wydatków_miesięcznych[[#This Row],[Kod KG]],Inne[Data zainicjowania zlecenia przelewu],\">=\"&DATEVALUE(\" 1. \"&Podsumowanie_wydatków_miesięcznych[[#Headers],[Maj]]&_xlfn.SINGLE(_ROK)),Inne[Data zainicjowania zlecenia przelewu],\"<=\"&H$4)","v":{"v":0,"d":"0.00 zł"}},{"$f":"SUMIFS(Wyszczególnione_wydatki[Kwota przelewu],Wyszczególnione_wydatki[Kod KG],Podsumowanie_wydatków_miesięcznych[[#This Row],[Kod KG]],Wyszczególnione_wydatki[Data faktury],\">=\"&I$3,Wyszczególnione_wydatki[Data faktury],\"<=\"&I$4)+SUMIFS(Inne[Kwota przelewu],Inne[Kod KG],Podsumowanie_wydatków_miesięcznych[[#This Row],[Kod KG]],Inne[Data zainicjowania zlecenia przelewu],\">=\"&DATEVALUE(\" 1. \"&Podsumowanie_wydatków_miesięcznych[[#Headers],[Czerwiec]]&_xlfn.SINGLE(_ROK)),Inne[Data zainicjowania zlecenia przelewu],\"<=\"&I$4)","v":{"v":0,"d":"0.00 zł"}},{"$f":"SUMIFS(Wyszczególnione_wydatki[Kwota przelewu],Wyszczególnione_wydatki[Kod KG],Podsumowanie_wydatków_miesięcznych[[#This Row],[Kod KG]],Wyszczególnione_wydatki[Data faktury],\">=\"&J$3,Wyszczególnione_wydatki[Data faktury],\"<=\"&J$4)+SUMIFS(Inne[Kwota przelewu],Inne[Kod KG],Podsumowanie_wydatków_miesięcznych[[#This Row],[Kod KG]],Inne[Data zainicjowania zlecenia przelewu],\">=\"&DATEVALUE(\" 1. \"&Podsumowanie_wydatków_miesięcznych[[#Headers],[Lipiec]]&_xlfn.SINGLE(_ROK)),Inne[Data zainicjowania zlecenia przelewu],\"<=\"&J$4)","v":{"v":0,"d":"0.00 zł"}},{"$f":"SUMIFS(Wyszczególnione_wydatki[Kwota przelewu],Wyszczególnione_wydatki[Kod KG],Podsumowanie_wydatków_miesięcznych[[#This Row],[Kod KG]],Wyszczególnione_wydatki[Data faktury],\">=\"&K$3,Wyszczególnione_wydatki[Data faktury],\"<=\"&K$4)+SUMIFS(Inne[Kwota przelewu],Inne[Kod KG],Podsumowanie_wydatków_miesięcznych[[#This Row],[Kod KG]],Inne[Data zainicjowania zlecenia przelewu],\">=\"&DATEVALUE(\" 1. \"&Podsumowanie_wydatków_miesięcznych[[#Headers],[Sierpień]]&_xlfn.SINGLE(_ROK)),Inne[Data zainicjowania zlecenia przelewu],\"<=\"&K$4)","v":{"v":0,"d":"0.00 zł"}},{"$f":"SUMIFS(Wyszczególnione_wydatki[Kwota przelewu],Wyszczególnione_wydatki[Kod KG],Podsumowanie_wydatków_miesięcznych[[#This Row],[Kod KG]],Wyszczególnione_wydatki[Data faktury],\">=\"&L$3,Wyszczególnione_wydatki[Data faktury],\"<=\"&L$4)+SUMIFS(Inne[Kwota przelewu],Inne[Kod KG],Podsumowanie_wydatków_miesięcznych[[#This Row],[Kod KG]],Inne[Data zainicjowania zlecenia przelewu],\">=\"&DATEVALUE(\" 1. \"&Podsumowanie_wydatków_miesięcznych[[#Headers],[Wrzesień]]&_xlfn.SINGLE(_ROK)),Inne[Data zainicjowania zlecenia przelewu],\"<=\"&L$4)","v":{"v":0,"d":"0.00 zł"}},{"$f":"SUMIFS(Wyszczególnione_wydatki[Kwota przelewu],Wyszczególnione_wydatki[Kod KG],Podsumowanie_wydatków_miesięcznych[[#This Row],[Kod KG]],Wyszczególnione_wydatki[Data faktury],\">=\"&M$3,Wyszczególnione_wydatki[Data faktury],\"<=\"&M$4)+SUMIFS(Inne[Kwota przelewu],Inne[Kod KG],Podsumowanie_wydatków_miesięcznych[[#This Row],[Kod KG]],Inne[Data zainicjowania zlecenia przelewu],\">=\"&DATEVALUE(Podsumowanie_wydatków_miesięcznych[[#Headers],[Październik]]&_xlfn.SINGLE(_ROK)),Inne[Data zainicjowania zlecenia przelewu],\"<=\"&M$4)","v":{"v":0,"d":"0.00 zł"}},{"$f":"SUMIFS(Wyszczególnione_wydatki[Kwota przelewu],Wyszczególnione_wydatki[Kod KG],Podsumowanie_wydatków_miesięcznych[[#This Row],[Kod KG]],Wyszczególnione_wydatki[Data faktury],\">=\"&N$3,Wyszczególnione_wydatki[Data faktury],\"<=\"&N$4)+SUMIFS(Inne[Kwota przelewu],Inne[Kod KG],Podsumowanie_wydatków_miesięcznych[[#This Row],[Kod KG]],Inne[Data zainicjowania zlecenia przelewu],\">=\"&DATEVALUE(\" 1. \"&Podsumowanie_wydatków_miesięcznych[[#Headers],[Listopad]]&_xlfn.SINGLE(_ROK)),Inne[Data zainicjowania zlecenia przelewu],\"<=\"&N$4)","v":{"v":0,"d":"0.00 zł"}},{"$f":"SUMIFS(Wyszczególnione_wydatki[Kwota przelewu],Wyszczególnione_wydatki[Kod KG],Podsumowanie_wydatków_miesięcznych[[#This Row],[Kod KG]],Wyszczególnione_wydatki[Data faktury],\">=\"&O$3,Wyszczególnione_wydatki[Data faktury],\"<=\"&O$4)+SUMIFS(Inne[Kwota przelewu],Inne[Kod KG],Podsumowanie_wydatków_miesięcznych[[#This Row],[Kod KG]],Inne[Data zainicjowania zlecenia przelewu],\">=\"&DATEVALUE(\" 1. \"&Podsumowanie_wydatków_miesięcznych[[#Headers],[Grudzień]]&_xlfn.SINGLE(_ROK)),Inne[Data zainicjowania zlecenia przelewu],\"<=\"&O$4)","v":{"v":0,"d":"0.00 zł"}},{"$f":"SUM(Podsumowanie_wydatków_miesięcznych[[#This Row],[Styczeń]:[Grudzień]])","v":{"v":0,"d":"0.00 zł"}}]
[null,9000,"Koszty budynku",{"$f":"SUMIFS(Wyszczególnione_wydatki[Kwota przelewu],Wyszczególnione_wydatki[Kod KG],Podsumowanie_wydatków_miesięcznych[[#This Row],[Kod KG]],Wyszczególnione_wydatki[Data faktury],\">=\"&D$3,Wyszczególnione_wydatki[Data faktury],\"<=\"&D$4)+SUMIFS(Inne[Kwota przelewu],Inne[Kod KG],Podsumowanie_wydatków_miesięcznych[[#This Row],[Kod KG]],Inne[Data zainicjowania zlecenia przelewu],\">=\"&DATEVALUE(\" 1. \"&Podsumowanie_wydatków_miesięcznych[[#Headers],[Styczeń]]&_xlfn.SINGLE(_ROK)),Inne[Data zainicjowania zlecenia przelewu],\"<=\"&D$4)","v":{"v":0,"d":"0.00 zł"}},{"$f":"SUMIFS(Wyszczególnione_wydatki[Kwota przelewu],Wyszczególnione_wydatki[Kod KG],Podsumowanie_wydatków_miesięcznych[[#This Row],[Kod KG]],Wyszczególnione_wydatki[Data faktury],\">=\"&E$3,Wyszczególnione_wydatki[Data faktury],\"<=\"&E$4)+SUMIFS(Inne[Kwota przelewu],Inne[Kod KG],Podsumowanie_wydatków_miesięcznych[[#This Row],[Kod KG]],Inne[Data zainicjowania zlecenia przelewu],\">=\"&DATEVALUE(\" 1. \"&Podsumowanie_wydatków_miesięcznych[[#Headers],[Luty]]&_xlfn.SINGLE(_ROK)),Inne[Data zainicjowania zlecenia przelewu],\"<=\"&E$4)","v":{"v":0,"d":"0.00 zł"}},{"$f":"SUMIFS(Wyszczególnione_wydatki[Kwota przelewu],Wyszczególnione_wydatki[Kod KG],Podsumowanie_wydatków_miesięcznych[[#This Row],[Kod KG]],Wyszczególnione_wydatki[Data faktury],\">=\"&F$3,Wyszczególnione_wydatki[Data faktury],\"<=\"&F$4)+SUMIFS(Inne[Kwota przelewu],Inne[Kod KG],Podsumowanie_wydatków_miesięcznych[[#This Row],[Kod KG]],Inne[Data zainicjowania zlecenia przelewu],\">=\"&DATEVALUE(\" 1. \"&Podsumowanie_wydatków_miesięcznych[[#Headers],[Marzec]]&_xlfn.SINGLE(_ROK)),Inne[Data zainicjowania zlecenia przelewu],\"<=\"&F$4)","v":{"v":0,"d":"0.00 zł"}},{"$f":"SUMIFS(Wyszczególnione_wydatki[Kwota przelewu],Wyszczególnione_wydatki[Kod KG],Podsumowanie_wydatków_miesięcznych[[#This Row],[Kod KG]],Wyszczególnione_wydatki[Data faktury],\">=\"&G$3,Wyszczególnione_wydatki[Data faktury],\"<=\"&G$4)+SUMIFS(Inne[Kwota przelewu],Inne[Kod KG],Podsumowanie_wydatków_miesięcznych[[#This Row],[Kod KG]],Inne[Data zainicjowania zlecenia przelewu],\">=\"&DATEVALUE(\" 1. \"&Podsumowanie_wydatków_miesięcznych[[#Headers],[Kwiecień]]&_xlfn.SINGLE(_ROK)),Inne[Data zainicjowania zlecenia przelewu],\"<=\"&G$4)","v":{"v":0,"d":"0.00 zł"}},{"$f":"SUMIFS(Wyszczególnione_wydatki[Kwota przelewu],Wyszczególnione_wydatki[Kod KG],Podsumowanie_wydatków_miesięcznych[[#This Row],[Kod KG]],Wyszczególnione_wydatki[Data faktury],\">=\"&H$3,Wyszczególnione_wydatki[Data faktury],\"<=\"&H$4)+SUMIFS(Inne[Kwota przelewu],Inne[Kod KG],Podsumowanie_wydatków_miesięcznych[[#This Row],[Kod KG]],Inne[Data zainicjowania zlecenia przelewu],\">=\"&DATEVALUE(\" 1. \"&Podsumowanie_wydatków_miesięcznych[[#Headers],[Maj]]&_xlfn.SINGLE(_ROK)),Inne[Data zainicjowania zlecenia przelewu],\"<=\"&H$4)","v":{"v":0,"d":"0.00 zł"}},{"$f":"SUMIFS(Wyszczególnione_wydatki[Kwota przelewu],Wyszczególnione_wydatki[Kod KG],Podsumowanie_wydatków_miesięcznych[[#This Row],[Kod KG]],Wyszczególnione_wydatki[Data faktury],\">=\"&I$3,Wyszczególnione_wydatki[Data faktury],\"<=\"&I$4)+SUMIFS(Inne[Kwota przelewu],Inne[Kod KG],Podsumowanie_wydatków_miesięcznych[[#This Row],[Kod KG]],Inne[Data zainicjowania zlecenia przelewu],\">=\"&DATEVALUE(\" 1. \"&Podsumowanie_wydatków_miesięcznych[[#Headers],[Czerwiec]]&_xlfn.SINGLE(_ROK)),Inne[Data zainicjowania zlecenia przelewu],\"<=\"&I$4)","v":{"v":0,"d":"0.00 zł"}},{"$f":"SUMIFS(Wyszczególnione_wydatki[Kwota przelewu],Wyszczególnione_wydatki[Kod KG],Podsumowanie_wydatków_miesięcznych[[#This Row],[Kod KG]],Wyszczególnione_wydatki[Data faktury],\">=\"&J$3,Wyszczególnione_wydatki[Data faktury],\"<=\"&J$4)+SUMIFS(Inne[Kwota przelewu],Inne[Kod KG],Podsumowanie_wydatków_miesięcznych[[#This Row],[Kod KG]],Inne[Data zainicjowania zlecenia przelewu],\">=\"&DATEVALUE(\" 1. \"&Podsumowanie_wydatków_miesięcznych[[#Headers],[Lipiec]]&_xlfn.SINGLE(_ROK)),Inne[Data zainicjowania zlecenia przelewu],\"<=\"&J$4)","v":{"v":0,"d":"0.00 zł"}},{"$f":"SUMIFS(Wyszczególnione_wydatki[Kwota przelewu],Wyszczególnione_wydatki[Kod KG],Podsumowanie_wydatków_miesięcznych[[#This Row],[Kod KG]],Wyszczególnione_wydatki[Data faktury],\">=\"&K$3,Wyszczególnione_wydatki[Data faktury],\"<=\"&K$4)+SUMIFS(Inne[Kwota przelewu],Inne[Kod KG],Podsumowanie_wydatków_miesięcznych[[#This Row],[Kod KG]],Inne[Data zainicjowania zlecenia przelewu],\">=\"&DATEVALUE(\" 1. \"&Podsumowanie_wydatków_miesięcznych[[#Headers],[Sierpień]]&_xlfn.SINGLE(_ROK)),Inne[Data zainicjowania zlecenia przelewu],\"<=\"&K$4)","v":{"v":0,"d":"0.00 zł"}},{"$f":"SUMIFS(Wyszczególnione_wydatki[Kwota przelewu],Wyszczególnione_wydatki[Kod KG],Podsumowanie_wydatków_miesięcznych[[#This Row],[Kod KG]],Wyszczególnione_wydatki[Data faktury],\">=\"&L$3,Wyszczególnione_wydatki[Data faktury],\"<=\"&L$4)+SUMIFS(Inne[Kwota przelewu],Inne[Kod KG],Podsumowanie_wydatków_miesięcznych[[#This Row],[Kod KG]],Inne[Data zainicjowania zlecenia przelewu],\">=\"&DATEVALUE(\" 1. \"&Podsumowanie_wydatków_miesięcznych[[#Headers],[Wrzesień]]&_xlfn.SINGLE(_ROK)),Inne[Data zainicjowania zlecenia przelewu],\"<=\"&L$4)","v":{"v":0,"d":"0.00 zł"}},{"$f":"SUMIFS(Wyszczególnione_wydatki[Kwota przelewu],Wyszczególnione_wydatki[Kod KG],Podsumowanie_wydatków_miesięcznych[[#This Row],[Kod KG]],Wyszczególnione_wydatki[Data faktury],\">=\"&M$3,Wyszczególnione_wydatki[Data faktury],\"<=\"&M$4)+SUMIFS(Inne[Kwota przelewu],Inne[Kod KG],Podsumowanie_wydatków_miesięcznych[[#This Row],[Kod KG]],Inne[Data zainicjowania zlecenia przelewu],\">=\"&DATEVALUE(Podsumowanie_wydatków_miesięcznych[[#Headers],[Październik]]&_xlfn.SINGLE(_ROK)),Inne[Data zainicjowania zlecenia przelewu],\"<=\"&M$4)","v":{"v":0,"d":"0.00 zł"}},{"$f":"SUMIFS(Wyszczególnione_wydatki[Kwota przelewu],Wyszczególnione_wydatki[Kod KG],Podsumowanie_wydatków_miesięcznych[[#This Row],[Kod KG]],Wyszczególnione_wydatki[Data faktury],\">=\"&N$3,Wyszczególnione_wydatki[Data faktury],\"<=\"&N$4)+SUMIFS(Inne[Kwota przelewu],Inne[Kod KG],Podsumowanie_wydatków_miesięcznych[[#This Row],[Kod KG]],Inne[Data zainicjowania zlecenia przelewu],\">=\"&DATEVALUE(\" 1. \"&Podsumowanie_wydatków_miesięcznych[[#Headers],[Listopad]]&_xlfn.SINGLE(_ROK)),Inne[Data zainicjowania zlecenia przelewu],\"<=\"&N$4)","v":{"v":0,"d":"0.00 zł"}},{"$f":"SUMIFS(Wyszczególnione_wydatki[Kwota przelewu],Wyszczególnione_wydatki[Kod KG],Podsumowanie_wydatków_miesięcznych[[#This Row],[Kod KG]],Wyszczególnione_wydatki[Data faktury],\">=\"&O$3,Wyszczególnione_wydatki[Data faktury],\"<=\"&O$4)+SUMIFS(Inne[Kwota przelewu],Inne[Kod KG],Podsumowanie_wydatków_miesięcznych[[#This Row],[Kod KG]],Inne[Data zainicjowania zlecenia przelewu],\">=\"&DATEVALUE(\" 1. \"&Podsumowanie_wydatków_miesięcznych[[#Headers],[Grudzień]]&_xlfn.SINGLE(_ROK)),Inne[Data zainicjowania zlecenia przelewu],\"<=\"&O$4)","v":{"v":0,"d":"0.00 zł"}},{"$f":"SUM(Podsumowanie_wydatków_miesięcznych[[#This Row],[Styczeń]:[Grudzień]])","v":{"v":0,"d":"0.00 zł"}}]
[null,10000,"Marketing",{"$f":"SUMIFS(Wyszczególnione_wydatki[Kwota przelewu],Wyszczególnione_wydatki[Kod KG],Podsumowanie_wydatków_miesięcznych[[#This Row],[Kod KG]],Wyszczególnione_wydatki[Data faktury],\">=\"&D$3,Wyszczególnione_wydatki[Data faktury],\"<=\"&D$4)+SUMIFS(Inne[Kwota przelewu],Inne[Kod KG],Podsumowanie_wydatków_miesięcznych[[#This Row],[Kod KG]],Inne[Data zainicjowania zlecenia przelewu],\">=\"&DATEVALUE(\" 1. \"&Podsumowanie_wydatków_miesięcznych[[#Headers],[Styczeń]]&_xlfn.SINGLE(_ROK)),Inne[Data zainicjowania zlecenia przelewu],\"<=\"&D$4)","v":{"v":0,"d":"0.00 zł"}},{"$f":"SUMIFS(Wyszczególnione_wydatki[Kwota przelewu],Wyszczególnione_wydatki[Kod KG],Podsumowanie_wydatków_miesięcznych[[#This Row],[Kod KG]],Wyszczególnione_wydatki[Data faktury],\">=\"&E$3,Wyszczególnione_wydatki[Data faktury],\"<=\"&E$4)+SUMIFS(Inne[Kwota przelewu],Inne[Kod KG],Podsumowanie_wydatków_miesięcznych[[#This Row],[Kod KG]],Inne[Data zainicjowania zlecenia przelewu],\">=\"&DATEVALUE(\" 1. \"&Podsumowanie_wydatków_miesięcznych[[#Headers],[Luty]]&_xlfn.SINGLE(_ROK)),Inne[Data zainicjowania zlecenia przelewu],\"<=\"&E$4)","v":{"v":0,"d":"0.00 zł"}},{"$f":"SUMIFS(Wyszczególnione_wydatki[Kwota przelewu],Wyszczególnione_wydatki[Kod KG],Podsumowanie_wydatków_miesięcznych[[#This Row],[Kod KG]],Wyszczególnione_wydatki[Data faktury],\">=\"&F$3,Wyszczególnione_wydatki[Data faktury],\"<=\"&F$4)+SUMIFS(Inne[Kwota przelewu],Inne[Kod KG],Podsumowanie_wydatków_miesięcznych[[#This Row],[Kod KG]],Inne[Data zainicjowania zlecenia przelewu],\">=\"&DATEVALUE(\" 1. \"&Podsumowanie_wydatków_miesięcznych[[#Headers],[Marzec]]&_xlfn.SINGLE(_ROK)),Inne[Data zainicjowania zlecenia przelewu],\"<=\"&F$4)","v":{"v":0,"d":"0.00 zł"}},{"$f":"SUMIFS(Wyszczególnione_wydatki[Kwota przelewu],Wyszczególnione_wydatki[Kod KG],Podsumowanie_wydatków_miesięcznych[[#This Row],[Kod KG]],Wyszczególnione_wydatki[Data faktury],\">=\"&G$3,Wyszczególnione_wydatki[Data faktury],\"<=\"&G$4)+SUMIFS(Inne[Kwota przelewu],Inne[Kod KG],Podsumowanie_wydatków_miesięcznych[[#This Row],[Kod KG]],Inne[Data zainicjowania zlecenia przelewu],\">=\"&DATEVALUE(\" 1. \"&Podsumowanie_wydatków_miesięcznych[[#Headers],[Kwiecień]]&_xlfn.SINGLE(_ROK)),Inne[Data zainicjowania zlecenia przelewu],\"<=\"&G$4)","v":{"v":0,"d":"0.00 zł"}},{"$f":"SUMIFS(Wyszczególnione_wydatki[Kwota przelewu],Wyszczególnione_wydatki[Kod KG],Podsumowanie_wydatków_miesięcznych[[#This Row],[Kod KG]],Wyszczególnione_wydatki[Data faktury],\">=\"&H$3,Wyszczególnione_wydatki[Data faktury],\"<=\"&H$4)+SUMIFS(Inne[Kwota przelewu],Inne[Kod KG],Podsumowanie_wydatków_miesięcznych[[#This Row],[Kod KG]],Inne[Data zainicjowania zlecenia przelewu],\">=\"&DATEVALUE(\" 1. \"&Podsumowanie_wydatków_miesięcznych[[#Headers],[Maj]]&_xlfn.SINGLE(_ROK)),Inne[Data zainicjowania zlecenia przelewu],\"<=\"&H$4)","v":{"v":0,"d":"0.00 zł"}},{"$f":"SUMIFS(Wyszczególnione_wydatki[Kwota przelewu],Wyszczególnione_wydatki[Kod KG],Podsumowanie_wydatków_miesięcznych[[#This Row],[Kod KG]],Wyszczególnione_wydatki[Data faktury],\">=\"&I$3,Wyszczególnione_wydatki[Data faktury],\"<=\"&I$4)+SUMIFS(Inne[Kwota przelewu],Inne[Kod KG],Podsumowanie_wydatków_miesięcznych[[#This Row],[Kod KG]],Inne[Data zainicjowania zlecenia przelewu],\">=\"&DATEVALUE(\" 1. \"&Podsumowanie_wydatków_miesięcznych[[#Headers],[Czerwiec]]&_xlfn.SINGLE(_ROK)),Inne[Data zainicjowania zlecenia przelewu],\"<=\"&I$4)","v":{"v":0,"d":"0.00 zł"}},{"$f":"SUMIFS(Wyszczególnione_wydatki[Kwota przelewu],Wyszczególnione_wydatki[Kod KG],Podsumowanie_wydatków_miesięcznych[[#This Row],[Kod KG]],Wyszczególnione_wydatki[Data faktury],\">=\"&J$3,Wyszczególnione_wydatki[Data faktury],\"<=\"&J$4)+SUMIFS(Inne[Kwota przelewu],Inne[Kod KG],Podsumowanie_wydatków_miesięcznych[[#This Row],[Kod KG]],Inne[Data zainicjowania zlecenia przelewu],\">=\"&DATEVALUE(\" 1. \"&Podsumowanie_wydatków_miesięcznych[[#Headers],[Lipiec]]&_xlfn.SINGLE(_ROK)),Inne[Data zainicjowania zlecenia przelewu],\"<=\"&J$4)","v":{"v":0,"d":"0.00 zł"}},{"$f":"SUMIFS(Wyszczególnione_wydatki[Kwota przelewu],Wyszczególnione_wydatki[Kod KG],Podsumowanie_wydatków_miesięcznych[[#This Row],[Kod KG]],Wyszczególnione_wydatki[Data faktury],\">=\"&K$3,Wyszczególnione_wydatki[Data faktury],\"<=\"&K$4)+SUMIFS(Inne[Kwota przelewu],Inne[Kod KG],Podsumowanie_wydatków_miesięcznych[[#This Row],[Kod KG]],Inne[Data zainicjowania zlecenia przelewu],\">=\"&DATEVALUE(\" 1. \"&Podsumowanie_wydatków_miesięcznych[[#Headers],[Sierpień]]&_xlfn.SINGLE(_ROK)),Inne[Data zainicjowania zlecenia przelewu],\"<=\"&K$4)","v":{"v":0,"d":"0.00 zł"}},{"$f":"SUMIFS(Wyszczególnione_wydatki[Kwota przelewu],Wyszczególnione_wydatki[Kod KG],Podsumowanie_wydatków_miesięcznych[[#This Row],[Kod KG]],Wyszczególnione_wydatki[Data faktury],\">=\"&L$3,Wyszczególnione_wydatki[Data faktury],\"<=\"&L$4)+SUMIFS(Inne[Kwota przelewu],Inne[Kod KG],Podsumowanie_wydatków_miesięcznych[[#This Row],[Kod KG]],Inne[Data zainicjowania zlecenia przelewu],\">=\"&DATEVALUE(\" 1. \"&Podsumowanie_wydatków_miesięcznych[[#Headers],[Wrzesień]]&_xlfn.SINGLE(_ROK)),Inne[Data zainicjowania zlecenia przelewu],\"<=\"&L$4)","v":{"v":0,"d":"0.00 zł"}},{"$f":"SUMIFS(Wyszczególnione_wydatki[Kwota przelewu],Wyszczególnione_wydatki[Kod KG],Podsumowanie_wydatków_miesięcznych[[#This Row],[Kod KG]],Wyszczególnione_wydatki[Data faktury],\">=\"&M$3,Wyszczególnione_wydatki[Data faktury],\"<=\"&M$4)+SUMIFS(Inne[Kwota przelewu],Inne[Kod KG],Podsumowanie_wydatków_miesięcznych[[#This Row],[Kod KG]],Inne[Data zainicjowania zlecenia przelewu],\">=\"&DATEVALUE(Podsumowanie_wydatków_miesięcznych[[#Headers],[Październik]]&_xlfn.SINGLE(_ROK)),Inne[Data zainicjowania zlecenia przelewu],\"<=\"&M$4)","v":{"v":0,"d":"0.00 zł"}},{"$f":"SUMIFS(Wyszczególnione_wydatki[Kwota przelewu],Wyszczególnione_wydatki[Kod KG],Podsumowanie_wydatków_miesięcznych[[#This Row],[Kod KG]],Wyszczególnione_wydatki[Data faktury],\">=\"&N$3,Wyszczególnione_wydatki[Data faktury],\"<=\"&N$4)+SUMIFS(Inne[Kwota przelewu],Inne[Kod KG],Podsumowanie_wydatków_miesięcznych[[#This Row],[Kod KG]],Inne[Data zainicjowania zlecenia przelewu],\">=\"&DATEVALUE(\" 1. \"&Podsumowanie_wydatków_miesięcznych[[#Headers],[Listopad]]&_xlfn.SINGLE(_ROK)),Inne[Data zainicjowania zlecenia przelewu],\"<=\"&N$4)","v":{"v":0,"d":"0.00 zł"}},{"$f":"SUMIFS(Wyszczególnione_wydatki[Kwota przelewu],Wyszczególnione_wydatki[Kod KG],Podsumowanie_wydatków_miesięcznych[[#This Row],[Kod KG]],Wyszczególnione_wydatki[Data faktury],\">=\"&O$3,Wyszczególnione_wydatki[Data faktury],\"<=\"&O$4)+SUMIFS(Inne[Kwota przelewu],Inne[Kod KG],Podsumowanie_wydatków_miesięcznych[[#This Row],[Kod KG]],Inne[Data zainicjowania zlecenia przelewu],\">=\"&DATEVALUE(\" 1. \"&Podsumowanie_wydatków_miesięcznych[[#Headers],[Grudzień]]&_xlfn.SINGLE(_ROK)),Inne[Data zainicjowania zlecenia przelewu],\"<=\"&O$4)","v":{"v":0,"d":"0.00 zł"}},{"$f":"SUM(Podsumowanie_wydatków_miesięcznych[[#This Row],[Styczeń]:[Grudzień]])","v":{"v":0,"d":"0.00 zł"}}]
[null,11000,"Cele charytatywne",{"$f":"SUMIFS(Wyszczególnione_wydatki[Kwota przelewu],Wyszczególnione_wydatki[Kod KG],Podsumowanie_wydatków_miesięcznych[[#This Row],[Kod KG]],Wyszczególnione_wydatki[Data faktury],\">=\"&D$3,Wyszczególnione_wydatki[Data faktury],\"<=\"&D$4)+SUMIFS(Inne[Kwota przelewu],Inne[Kod KG],Podsumowanie_wydatków_miesięcznych[[#This Row],[Kod KG]],Inne[Data zainicjowania zlecenia przelewu],\">=\"&DATEVALUE(\" 1. \"&Podsumowanie_wydatków_miesięcznych[[#Headers],[Styczeń]]&_xlfn.SINGLE(_ROK)),Inne[Data zainicjowania zlecenia przelewu],\"<=\"&D$4)","v":{"v":0,"d":"0.00 zł"}},{"$f":"SUMIFS(Wyszczególnione_wydatki[Kwota przelewu],Wyszczególnione_wydatki[Kod KG],Podsumowanie_wydatków_miesięcznych[[#This Row],[Kod KG]],Wyszczególnione_wydatki[Data faktury],\">=\"&E$3,Wyszczególnione_wydatki[Data faktury],\"<=\"&E$4)+SUMIFS(Inne[Kwota przelewu],Inne[Kod KG],Podsumowanie_wydatków_miesięcznych[[#This Row],[Kod KG]],Inne[Data zainicjowania zlecenia przelewu],\">=\"&DATEVALUE(\" 1. \"&Podsumowanie_wydatków_miesięcznych[[#Headers],[Luty]]&_xlfn.SINGLE(_ROK)),Inne[Data zainicjowania zlecenia przelewu],\"<=\"&E$4)","v":{"v":0,"d":"0.00 zł"}},{"$f":"SUMIFS(Wyszczególnione_wydatki[Kwota przelewu],Wyszczególnione_wydatki[Kod KG],Podsumowanie_wydatków_miesięcznych[[#This Row],[Kod KG]],Wyszczególnione_wydatki[Data faktury],\">=\"&F$3,Wyszczególnione_wydatki[Data faktury],\"<=\"&F$4)+SUMIFS(Inne[Kwota przelewu],Inne[Kod KG],Podsumowanie_wydatków_miesięcznych[[#This Row],[Kod KG]],Inne[Data zainicjowania zlecenia przelewu],\">=\"&DATEVALUE(\" 1. \"&Podsumowanie_wydatków_miesięcznych[[#Headers],[Marzec]]&_xlfn.SINGLE(_ROK)),Inne[Data zainicjowania zlecenia przelewu],\"<=\"&F$4)","v":{"v":0,"d":"0.00 zł"}},{"$f":"SUMIFS(Wyszczególnione_wydatki[Kwota przelewu],Wyszczególnione_wydatki[Kod KG],Podsumowanie_wydatków_miesięcznych[[#This Row],[Kod KG]],Wyszczególnione_wydatki[Data faktury],\">=\"&G$3,Wyszczególnione_wydatki[Data faktury],\"<=\"&G$4)+SUMIFS(Inne[Kwota przelewu],Inne[Kod KG],Podsumowanie_wydatków_miesięcznych[[#This Row],[Kod KG]],Inne[Data zainicjowania zlecenia przelewu],\">=\"&DATEVALUE(\" 1. \"&Podsumowanie_wydatków_miesięcznych[[#Headers],[Kwiecień]]&_xlfn.SINGLE(_ROK)),Inne[Data zainicjowania zlecenia przelewu],\"<=\"&G$4)","v":{"v":0,"d":"0.00 zł"}},{"$f":"SUMIFS(Wyszczególnione_wydatki[Kwota przelewu],Wyszczególnione_wydatki[Kod KG],Podsumowanie_wydatków_miesięcznych[[#This Row],[Kod KG]],Wyszczególnione_wydatki[Data faktury],\">=\"&H$3,Wyszczególnione_wydatki[Data faktury],\"<=\"&H$4)+SUMIFS(Inne[Kwota przelewu],Inne[Kod KG],Podsumowanie_wydatków_miesięcznych[[#This Row],[Kod KG]],Inne[Data zainicjowania zlecenia przelewu],\">=\"&DATEVALUE(\" 1. \"&Podsumowanie_wydatków_miesięcznych[[#Headers],[Maj]]&_xlfn.SINGLE(_ROK)),Inne[Data zainicjowania zlecenia przelewu],\"<=\"&H$4)","v":{"v":0,"d":"0.00 zł"}},{"$f":"SUMIFS(Wyszczególnione_wydatki[Kwota przelewu],Wyszczególnione_wydatki[Kod KG],Podsumowanie_wydatków_miesięcznych[[#This Row],[Kod KG]],Wyszczególnione_wydatki[Data faktury],\">=\"&I$3,Wyszczególnione_wydatki[Data faktury],\"<=\"&I$4)+SUMIFS(Inne[Kwota przelewu],Inne[Kod KG],Podsumowanie_wydatków_miesięcznych[[#This Row],[Kod KG]],Inne[Data zainicjowania zlecenia przelewu],\">=\"&DATEVALUE(\" 1. \"&Podsumowanie_wydatków_miesięcznych[[#Headers],[Czerwiec]]&_xlfn.SINGLE(_ROK)),Inne[Data zainicjowania zlecenia przelewu],\"<=\"&I$4)","v":{"v":0,"d":"0.00 zł"}},{"$f":"SUMIFS(Wyszczególnione_wydatki[Kwota przelewu],Wyszczególnione_wydatki[Kod KG],Podsumowanie_wydatków_miesięcznych[[#This Row],[Kod KG]],Wyszczególnione_wydatki[Data faktury],\">=\"&J$3,Wyszczególnione_wydatki[Data faktury],\"<=\"&J$4)+SUMIFS(Inne[Kwota przelewu],Inne[Kod KG],Podsumowanie_wydatków_miesięcznych[[#This Row],[Kod KG]],Inne[Data zainicjowania zlecenia przelewu],\">=\"&DATEVALUE(\" 1. \"&Podsumowanie_wydatków_miesięcznych[[#Headers],[Lipiec]]&_xlfn.SINGLE(_ROK)),Inne[Data zainicjowania zlecenia przelewu],\"<=\"&J$4)","v":{"v":0,"d":"0.00 zł"}},{"$f":"SUMIFS(Wyszczególnione_wydatki[Kwota przelewu],Wyszczególnione_wydatki[Kod KG],Podsumowanie_wydatków_miesięcznych[[#This Row],[Kod KG]],Wyszczególnione_wydatki[Data faktury],\">=\"&K$3,Wyszczególnione_wydatki[Data faktury],\"<=\"&K$4)+SUMIFS(Inne[Kwota przelewu],Inne[Kod KG],Podsumowanie_wydatków_miesięcznych[[#This Row],[Kod KG]],Inne[Data zainicjowania zlecenia przelewu],\">=\"&DATEVALUE(\" 1. \"&Podsumowanie_wydatków_miesięcznych[[#Headers],[Sierpień]]&_xlfn.SINGLE(_ROK)),Inne[Data zainicjowania zlecenia przelewu],\"<=\"&K$4)","v":{"v":0,"d":"0.00 zł"}},{"$f":"SUMIFS(Wyszczególnione_wydatki[Kwota przelewu],Wyszczególnione_wydatki[Kod KG],Podsumowanie_wydatków_miesięcznych[[#This Row],[Kod KG]],Wyszczególnione_wydatki[Data faktury],\">=\"&L$3,Wyszczególnione_wydatki[Data faktury],\"<=\"&L$4)+SUMIFS(Inne[Kwota przelewu],Inne[Kod KG],Podsumowanie_wydatków_miesięcznych[[#This Row],[Kod KG]],Inne[Data zainicjowania zlecenia przelewu],\">=\"&DATEVALUE(\" 1. \"&Podsumowanie_wydatków_miesięcznych[[#Headers],[Wrzesień]]&_xlfn.SINGLE(_ROK)),Inne[Data zainicjowania zlecenia przelewu],\"<=\"&L$4)","v":{"v":0,"d":"0.00 zł"}},{"$f":"SUMIFS(Wyszczególnione_wydatki[Kwota przelewu],Wyszczególnione_wydatki[Kod KG],Podsumowanie_wydatków_miesięcznych[[#This Row],[Kod KG]],Wyszczególnione_wydatki[Data faktury],\">=\"&M$3,Wyszczególnione_wydatki[Data faktury],\"<=\"&M$4)+SUMIFS(Inne[Kwota przelewu],Inne[Kod KG],Podsumowanie_wydatków_miesięcznych[[#This Row],[Kod KG]],Inne[Data zainicjowania zlecenia przelewu],\">=\"&DATEVALUE(Podsumowanie_wydatków_miesięcznych[[#Headers],[Październik]]&_xlfn.SINGLE(_ROK)),Inne[Data zainicjowania zlecenia przelewu],\"<=\"&M$4)","v":{"v":0,"d":"0.00 zł"}},{"$f":"SUMIFS(Wyszczególnione_wydatki[Kwota przelewu],Wyszczególnione_wydatki[Kod KG],Podsumowanie_wydatków_miesięcznych[[#This Row],[Kod KG]],Wyszczególnione_wydatki[Data faktury],\">=\"&N$3,Wyszczególnione_wydatki[Data faktury],\"<=\"&N$4)+SUMIFS(Inne[Kwota przelewu],Inne[Kod KG],Podsumowanie_wydatków_miesięcznych[[#This Row],[Kod KG]],Inne[Data zainicjowania zlecenia przelewu],\">=\"&DATEVALUE(\" 1. \"&Podsumowanie_wydatków_miesięcznych[[#Headers],[Listopad]]&_xlfn.SINGLE(_ROK)),Inne[Data zainicjowania zlecenia przelewu],\"<=\"&N$4)","v":{"v":0,"d":"0.00 zł"}},{"$f":"SUMIFS(Wyszczególnione_wydatki[Kwota przelewu],Wyszczególnione_wydatki[Kod KG],Podsumowanie_wydatków_miesięcznych[[#This Row],[Kod KG]],Wyszczególnione_wydatki[Data faktury],\">=\"&O$3,Wyszczególnione_wydatki[Data faktury],\"<=\"&O$4)+SUMIFS(Inne[Kwota przelewu],Inne[Kod KG],Podsumowanie_wydatków_miesięcznych[[#This Row],[Kod KG]],Inne[Data zainicjowania zlecenia przelewu],\">=\"&DATEVALUE(\" 1. \"&Podsumowanie_wydatków_miesięcznych[[#Headers],[Grudzień]]&_xlfn.SINGLE(_ROK)),Inne[Data zainicjowania zlecenia przelewu],\"<=\"&O$4)","v":{"v":0,"d":"0.00 zł"}},{"$f":"SUM(Podsumowanie_wydatków_miesięcznych[[#This Row],[Styczeń]:[Grudzień]])","v":{"v":0,"d":"0.00 zł"}}]
[null,12000,"Sponsorowanie",{"$f":"SUMIFS(Wyszczególnione_wydatki[Kwota przelewu],Wyszczególnione_wydatki[Kod KG],Podsumowanie_wydatków_miesięcznych[[#This Row],[Kod KG]],Wyszczególnione_wydatki[Data faktury],\">=\"&D$3,Wyszczególnione_wydatki[Data faktury],\"<=\"&D$4)+SUMIFS(Inne[Kwota przelewu],Inne[Kod KG],Podsumowanie_wydatków_miesięcznych[[#This Row],[Kod KG]],Inne[Data zainicjowania zlecenia przelewu],\">=\"&DATEVALUE(\" 1. \"&Podsumowanie_wydatków_miesięcznych[[#Headers],[Styczeń]]&_xlfn.SINGLE(_ROK)),Inne[Data zainicjowania zlecenia przelewu],\"<=\"&D$4)","v":{"v":0,"d":"0.00 zł"}},{"$f":"SUMIFS(Wyszczególnione_wydatki[Kwota przelewu],Wyszczególnione_wydatki[Kod KG],Podsumowanie_wydatków_miesięcznych[[#This Row],[Kod KG]],Wyszczególnione_wydatki[Data faktury],\">=\"&E$3,Wyszczególnione_wydatki[Data faktury],\"<=\"&E$4)+SUMIFS(Inne[Kwota przelewu],Inne[Kod KG],Podsumowanie_wydatków_miesięcznych[[#This Row],[Kod KG]],Inne[Data zainicjowania zlecenia przelewu],\">=\"&DATEVALUE(\" 1. \"&Podsumowanie_wydatków_miesięcznych[[#Headers],[Luty]]&_xlfn.SINGLE(_ROK)),Inne[Data zainicjowania zlecenia przelewu],\"<=\"&E$4)","v":{"v":0,"d":"0.00 zł"}},{"$f":"SUMIFS(Wyszczególnione_wydatki[Kwota przelewu],Wyszczególnione_wydatki[Kod KG],Podsumowanie_wydatków_miesięcznych[[#This Row],[Kod KG]],Wyszczególnione_wydatki[Data faktury],\">=\"&F$3,Wyszczególnione_wydatki[Data faktury],\"<=\"&F$4)+SUMIFS(Inne[Kwota przelewu],Inne[Kod KG],Podsumowanie_wydatków_miesięcznych[[#This Row],[Kod KG]],Inne[Data zainicjowania zlecenia przelewu],\">=\"&DATEVALUE(\" 1. \"&Podsumowanie_wydatków_miesięcznych[[#Headers],[Marzec]]&_xlfn.SINGLE(_ROK)),Inne[Data zainicjowania zlecenia przelewu],\"<=\"&F$4)","v":{"v":0,"d":"0.00 zł"}},{"$f":"SUMIFS(Wyszczególnione_wydatki[Kwota przelewu],Wyszczególnione_wydatki[Kod KG],Podsumowanie_wydatków_miesięcznych[[#This Row],[Kod KG]],Wyszczególnione_wydatki[Data faktury],\">=\"&G$3,Wyszczególnione_wydatki[Data faktury],\"<=\"&G$4)+SUMIFS(Inne[Kwota przelewu],Inne[Kod KG],Podsumowanie_wydatków_miesięcznych[[#This Row],[Kod KG]],Inne[Data zainicjowania zlecenia przelewu],\">=\"&DATEVALUE(\" 1. \"&Podsumowanie_wydatków_miesięcznych[[#Headers],[Kwiecień]]&_xlfn.SINGLE(_ROK)),Inne[Data zainicjowania zlecenia przelewu],\"<=\"&G$4)","v":{"v":0,"d":"0.00 zł"}},{"$f":"SUMIFS(Wyszczególnione_wydatki[Kwota przelewu],Wyszczególnione_wydatki[Kod KG],Podsumowanie_wydatków_miesięcznych[[#This Row],[Kod KG]],Wyszczególnione_wydatki[Data faktury],\">=\"&H$3,Wyszczególnione_wydatki[Data faktury],\"<=\"&H$4)+SUMIFS(Inne[Kwota przelewu],Inne[Kod KG],Podsumowanie_wydatków_miesięcznych[[#This Row],[Kod KG]],Inne[Data zainicjowania zlecenia przelewu],\">=\"&DATEVALUE(\" 1. \"&Podsumowanie_wydatków_miesięcznych[[#Headers],[Maj]]&_xlfn.SINGLE(_ROK)),Inne[Data zainicjowania zlecenia przelewu],\"<=\"&H$4)","v":{"v":0,"d":"0.00 zł"}},{"$f":"SUMIFS(Wyszczególnione_wydatki[Kwota przelewu],Wyszczególnione_wydatki[Kod KG],Podsumowanie_wydatków_miesięcznych[[#This Row],[Kod KG]],Wyszczególnione_wydatki[Data faktury],\">=\"&I$3,Wyszczególnione_wydatki[Data faktury],\"<=\"&I$4)+SUMIFS(Inne[Kwota przelewu],Inne[Kod KG],Podsumowanie_wydatków_miesięcznych[[#This Row],[Kod KG]],Inne[Data zainicjowania zlecenia przelewu],\">=\"&DATEVALUE(\" 1. \"&Podsumowanie_wydatków_miesięcznych[[#Headers],[Czerwiec]]&_xlfn.SINGLE(_ROK)),Inne[Data zainicjowania zlecenia przelewu],\"<=\"&I$4)","v":{"v":0,"d":"0.00 zł"}},{"$f":"SUMIFS(Wyszczególnione_wydatki[Kwota przelewu],Wyszczególnione_wydatki[Kod KG],Podsumowanie_wydatków_miesięcznych[[#This Row],[Kod KG]],Wyszczególnione_wydatki[Data faktury],\">=\"&J$3,Wyszczególnione_wydatki[Data faktury],\"<=\"&J$4)+SUMIFS(Inne[Kwota przelewu],Inne[Kod KG],Podsumowanie_wydatków_miesięcznych[[#This Row],[Kod KG]],Inne[Data zainicjowania zlecenia przelewu],\">=\"&DATEVALUE(\" 1. \"&Podsumowanie_wydatków_miesięcznych[[#Headers],[Lipiec]]&_xlfn.SINGLE(_ROK)),Inne[Data zainicjowania zlecenia przelewu],\"<=\"&J$4)","v":{"v":0,"d":"0.00 zł"}},{"$f":"SUMIFS(Wyszczególnione_wydatki[Kwota przelewu],Wyszczególnione_wydatki[Kod KG],Podsumowanie_wydatków_miesięcznych[[#This Row],[Kod KG]],Wyszczególnione_wydatki[Data faktury],\">=\"&K$3,Wyszczególnione_wydatki[Data faktury],\"<=\"&K$4)+SUMIFS(Inne[Kwota przelewu],Inne[Kod KG],Podsumowanie_wydatków_miesięcznych[[#This Row],[Kod KG]],Inne[Data zainicjowania zlecenia przelewu],\">=\"&DATEVALUE(\" 1. \"&Podsumowanie_wydatków_miesięcznych[[#Headers],[Sierpień]]&_xlfn.SINGLE(_ROK)),Inne[Data zainicjowania zlecenia przelewu],\"<=\"&K$4)","v":{"v":0,"d":"0.00 zł"}},{"$f":"SUMIFS(Wyszczególnione_wydatki[Kwota przelewu],Wyszczególnione_wydatki[Kod KG],Podsumowanie_wydatków_miesięcznych[[#This Row],[Kod KG]],Wyszczególnione_wydatki[Data faktury],\">=\"&L$3,Wyszczególnione_wydatki[Data faktury],\"<=\"&L$4)+SUMIFS(Inne[Kwota przelewu],Inne[Kod KG],Podsumowanie_wydatków_miesięcznych[[#This Row],[Kod KG]],Inne[Data zainicjowania zlecenia przelewu],\">=\"&DATEVALUE(\" 1. \"&Podsumowanie_wydatków_miesięcznych[[#Headers],[Wrzesień]]&_xlfn.SINGLE(_ROK)),Inne[Data zainicjowania zlecenia przelewu],\"<=\"&L$4)","v":{"v":0,"d":"0.00 zł"}},{"$f":"SUMIFS(Wyszczególnione_wydatki[Kwota przelewu],Wyszczególnione_wydatki[Kod KG],Podsumowanie_wydatków_miesięcznych[[#This Row],[Kod KG]],Wyszczególnione_wydatki[Data faktury],\">=\"&M$3,Wyszczególnione_wydatki[Data faktury],\"<=\"&M$4)+SUMIFS(Inne[Kwota przelewu],Inne[Kod KG],Podsumowanie_wydatków_miesięcznych[[#This Row],[Kod KG]],Inne[Data zainicjowania zlecenia przelewu],\">=\"&DATEVALUE(Podsumowanie_wydatków_miesięcznych[[#Headers],[Październik]]&_xlfn.SINGLE(_ROK)),Inne[Data zainicjowania zlecenia przelewu],\"<=\"&M$4)","v":{"v":0,"d":"0.00 zł"}},{"$f":"SUMIFS(Wyszczególnione_wydatki[Kwota przelewu],Wyszczególnione_wydatki[Kod KG],Podsumowanie_wydatków_miesięcznych[[#This Row],[Kod KG]],Wyszczególnione_wydatki[Data faktury],\">=\"&N$3,Wyszczególnione_wydatki[Data faktury],\"<=\"&N$4)+SUMIFS(Inne[Kwota przelewu],Inne[Kod KG],Podsumowanie_wydatków_miesięcznych[[#This Row],[Kod KG]],Inne[Data zainicjowania zlecenia przelewu],\">=\"&DATEVALUE(\" 1. \"&Podsumowanie_wydatków_miesięcznych[[#Headers],[Listopad]]&_xlfn.SINGLE(_ROK)),Inne[Data zainicjowania zlecenia przelewu],\"<=\"&N$4)","v":{"v":0,"d":"0.00 zł"}},{"$f":"SUMIFS(Wyszczególnione_wydatki[Kwota przelewu],Wyszczególnione_wydatki[Kod KG],Podsumowanie_wydatków_miesięcznych[[#This Row],[Kod KG]],Wyszczególnione_wydatki[Data faktury],\">=\"&O$3,Wyszczególnione_wydatki[Data faktury],\"<=\"&O$4)+SUMIFS(Inne[Kwota przelewu],Inne[Kod KG],Podsumowanie_wydatków_miesięcznych[[#This Row],[Kod KG]],Inne[Data zainicjowania zlecenia przelewu],\">=\"&DATEVALUE(\" 1. \"&Podsumowanie_wydatków_miesięcznych[[#Headers],[Grudzień]]&_xlfn.SINGLE(_ROK)),Inne[Data zainicjowania zlecenia przelewu],\"<=\"&O$4)","v":{"v":0,"d":"0.00 zł"}},{"$f":"SUM(Podsumowanie_wydatków_miesięcznych[[#This Row],[Styczeń]:[Grudzień]])","v":{"v":0,"d":"0.00 zł"}}]
[null,"Suma",null,{"$f":"SUBTOTAL(109,Podsumowanie_wydatków_miesięcznych[Styczeń])","v":{"v":0,"d":"0.00 zł"}},{"$f":"SUBTOTAL(109,Podsumowanie_wydatków_miesięcznych[Luty])","v":{"v":0,"d":"0.00 zł"}},{"$f":"SUBTOTAL(109,Podsumowanie_wydatków_miesięcznych[Marzec])","v":{"v":0,"d":"0.00 zł"}},{"$f":"SUBTOTAL(109,Podsumowanie_wydatków_miesięcznych[Kwiecień])","v":{"v":0,"d":"0.00 zł"}},{"$f":"SUBTOTAL(109,Podsumowanie_wydatków_miesięcznych[Maj])","v":{"v":0,"d":"0.00 zł"}},{"$f":"SUBTOTAL(109,Podsumowanie_wydatków_miesięcznych[Czerwiec])","v":{"v":0,"d":"0.00 zł"}},{"$f":"SUBTOTAL(109,Podsumowanie_wydatków_miesięcznych[Lipiec])","v":{"v":0,"d":"0.00 zł"}},{"$f":"SUBTOTAL(109,Podsumowanie_wydatków_miesięcznych[Sierpień])","v":{"v":0,"d":"0.00 zł"}},{"$f":"SUBTOTAL(109,Podsumowanie_wydatków_miesięcznych[Wrzesień])","v":{"v":0,"d":"0.00 zł"}},{"$f":"SUBTOTAL(109,Podsumowanie_wydatków_miesięcznych[Październik])","v":{"v":0,"d":"0.00 zł"}},{"$f":"SUBTOTAL(109,Podsumowanie_wydatków_miesięcznych[Listopad])","v":{"v":0,"d":"0.00 zł"}},{"$f":"SUBTOTAL(109,Podsumowanie_wydatków_miesięcznych[Grudzień])","v":{"v":0,"d":"0.00 zł"}},{"$f":"SUBTOTAL(109,Podsumowanie_wydatków_miesięcznych[Suma])","v":{"v":0,"d":"0.00 zł"}}]

{"sheet":"WYSZCZEGÓLNIONE WYDATKI","index":2,"n_rows":6,"n_cols":10,"rows_kept":6,"merged":[[1,1,1,9],[2,1,2,5],[2,6,2,9]]}
[null,"PODSUM. WYDATKÓW MIESIĘCZNYCH","CELE CHARYTATYWNE I SPONSORING"]
[null,"WYSZCZEGÓLNIONE WYDATKI"]
[null,"Fragmentator do filtrowania danych według zleceniodawców znajduje się w tej komórce, a fragmentator do filtrowania danych według odbiorców znajduje się w komórce po prawej stronie.",{"$nulls":4},"W tej komórce znajduje się fragmentator do filtrowania danych według odbiorców."]
[null,"Kod KG","Data faktury","Faktura nr","Zlecone przez","Kwota przelewu","Odbiorca","Sprawdzanie użycia","Metoda dystrybucji","Data zaksięgowania"]
[null,1000,"Data",100,"Artur Wieczorek",{"v":750.75,"d":"750.75 zł"},"Consolidated Messenger ","Program obsługi poczty","Adres do korespondencji","Data"]
[null,7000,"Data",101,"Paweł Zawadzki",{"v":2500,"d":"2,500.00 zł"},"A. Datum Corporation ","2 komputery stacjonarne","Kredyt","Data"]

{"sheet":"CELE CHARYTATYWNE I SPONSORING","index":3,"n_rows":6,"n_cols":12,"rows_kept":6,"merged":[[1,1,1,11],[2,1,2,5],[2,6,2,11]]}
[null,"WYSZCZEGÓLNIONE WYDATKI"]
[null,"CELE CHARYTATYWNE I SPONSORING"]
[null,"Fragmentator do filtrowania danych według zleceniodawców znajduje się w tej komórce, a fragmentator do filtrowania danych według odbiorców znajduje się w komórce po prawej stronie.",{"$nulls":4},"W tej komórce znajduje się fragmentator do filtrowania danych według odbiorców."]
[null,"Kod KG","Data zainicjowania zlecenia przelewu","Zlecone przez","Kwota przelewu","Udział w poprzednim roku","Odbiorca","Wykorzystanie","Zatwierdzone przez","Kategoria","Metoda dystrybucji","Data zaksięgowania"]
[null,12000,"Data","Luiza Bagińska",{"v":1000,"d":"1,000.00 zł"},{"v":12,"d":"12.00 zł"},"School of Fine Art ","Stypendia","Zofia Wiśniewska","Grafika","Przelew","Data"]
[null,11000,"Data","Luiza Bagińska",{"v":2500,"d":"2,500.00 zł"},{"v":0,"d":"0.00 zł"},"Wingtip Toys ","Społeczność","Joanna Krawczyk","Społeczność","Przelew","Data"]